{"text_format":"1","workbook":"xlsx","n_sheets":2,"sheets":["Bestandaufnahme","Verzeichnisse"],"not_rendered":{"charts":0,"images":0,"macros":1,"external_links":0,"defined_names":49,"comments":0,"pivot_tables":0},"unopened":[],"bounds":{"document_bytes":16777216,"sheet_cells":100000,"rows_first":2000,"rows_last":500,"rows_between":2000,"halvings":0,"cell_chars":16384,"cell_head_chars":4096},"cells_cut":0,"cells_raw":0,"read":"whole","date_system":"1900"}

{"sheet":"Bestandaufnahme","index":0,"n_rows":100,"n_cols":43,"rows_kept":100,"cut":false,"hidden":false,"merged":[[2,36,2,39],[2,40,2,42],[0,0,0,34],[2,0,4,13],[1,2,1,34],[4,27,4,33],[4,17,4,26],[3,34,4,34],[1,0,1,1],[2,14,2,34],[3,17,3,33],[3,14,4,15]]}
["BESTANDSAUFNAHME DER KORRUPTIONSGEFÄHRDETEN TÄTIGKEITEN"]
["Struktur",null,"Landwirtschaft"]
["Bestimmung des Prozesses/der Phase",null,null,null,null,null,null,null,null,null,null,null,null,null,"Risikobewertung",null,null,null,null,null,null,null,null,null,null,null,null,null,null,null,null,null,null,null,null,null,"Vorbeugungsmaßnahme",null,null,null,"Monitoring über die Vorbeugungsmaßnahme"]
[null,null,null,null,null,null,null,null,null,null,null,null,null,null,"a) Identifizierung des Risikos",null,null,"b) Analyse des Risikos",null,null,null,null,null,null,null,null,null,null,null,null,null,null,null,null,"c) Risikogewichtung"]
[null,null,null,null,null,null,null,null,null,null,null,null,null,null,null,null,null,"WAHRSCHEINLICHKEIT - Indikatoren für die Bewertung der Wahrscheinlichkeit, dass das jeweilige Risiko eintritt",null,null,null,null,null,null,null,null,null,"AUSWIRKUNGEN - Indikatoren für die Bewertung der möglichen Auswirkungen eines Risikoeintritts",null,null,null,null,null,null,null,null,"Maßnahme","Parameter","Verantwortliche Struktur","Frist für die Umsetzung ","Umsetzung","Frist","Wirksamkeit"]
["Amt / Organisationseinheit / Bereich","Risikobereich","Beschreibung des \"weiteren\" Risikobereiches ","Entscheidungsprozess (siehe Anlage 2)","Korruptionsgefährdete Phase des Entscheidungsprozesses","Stakeholder \n(externe / interne / öffentliche) ","primäres Interesse","sekundäres Interesse","Ursprung / Erfordernisse des Prozesses (INPUT)","Erhofftes Ergebnis (OUTPUT)","Rechtsquelle","Wer ist der Verantwortliche des Verfahrens?","Gesamtbetrag der im vergangenen Jahr getätigten Ausgaben","Gesamtzahl der Verfahren im vergangenen Jahr","Beschreibung des Risikos","Ursache des Risikos","Wesentliche Anomalien","Ermessensfreiheit","Verwaltungsexterne Relevanz\n","Komplexität des Entscheidungsprozesses","Wirtschaftliche Bedeutung\n\n","Teilbarkeit des Entscheidungsprozesses\n\n","Kontrollen im Rahmen des Entscheidungsprozesses","Rückverfolgbarkeit und Transparenz","Beteiligung von externen Subjekten","SUMME","DURCHSCHNITTSWERT DER WAHRSCHEINLICHKEIT ","Organisatorische Auswirkungen\n\n","Wirtschaftliche  Auswirkungen\n\n","Rufschädigende Auswirkungen\n\n","Auswirkungen auf Image und Organisation\n\n","SUMME","DURCHSCHNITTSWERT DER AUSWIRKUNGEN ","GESAMTBEWERTUNG DES RISIKOS","Risikorangordnung\n","Verschiedene Anmerkungen - Korruptionsgefährdete Tätigkeiten","Vorbeugungsmaßnahme","Parameter für die Bewertung der Wirksamkeit der Maßnahme ","Für die Umsetzung verantwortliche Struktur","Frist für die Umsetzung ","Wurde die Maßnahme umgesetzt?","Wurde die Frist eingehalten? ","Bewertung"]
["31.0","- B) Öffentliche Verträge",null,"Ankauf von Gütern und Dienstleistugnen unter 40.000,00 Euro","B Phase 8","Externe: Wirtschaftsteilnehmer ","Abwicklung istitutioneller Aufgaben ","wirtschaftliche Interessen","konkrete Bedarfsanmeldung ","Zuschlag ","LG 16/2015 ","- Abteilungsdirektor",55049.68,47,"Missbrauch der Direktvergabe  außerhalb der vom Gesetz vorgesehenen Fälle, bzw. wiederholte Auftragsvergabe an diesselben Dienstleister","gewohnheitsmäßige Abwicklung der Aufträge",null,"Keine, es ist vollständig geregelt (1)","Ja, das Ergebnis des Entscheidungsprozesses ist an Subjekte außerhalb der Landesverwaltung gerichtet (5)","Nein, der Entscheidungsprozess betrifft ausschließlich die Landesverwaltung  (1)","Der Entscheidungsprozess bedingt zwar die Gewährung von Vergünstigungen bzw. Vorteilen an externe Subjekte, aber diese Vorteile haben keine besondere wirtschaftliche Relevanz (z.B. Gewährung von Studienbeihilfen an Studenten)  (3)","Nein  (1)","Von mehreren Personen, darunter auch jene Person, die für vorhergehende Phasen zuständig war (3)","Ja (1)","Nein (1)",16,{"$f":"ROUND(+Z7/8,1)","v":2},"Bis ungefähr 20%    (1)","Nein (1)","Wir haben diesbezüglich keine Kenntnis    (1)","Die Position einer Führungskraft   (5) ",8,{"$f":"ROUND(+AF7/4,1)","v":2},{"$f":"+AA7*AG7","v":4},1,null,"Schulung des Personals,  Anwendung des Kriteriums der Rotation bei der Zuschlagsvergabe ","Überprüfung der erteilten Aufträge auf dass das Kriterium der Rotation berücksichtigt worden ist","Abteilung ","bereits abgelaufen","Ja","Ja","wirksam"]
[" 31.1 Amt für Viehzucht","- D) Gewährung und Auszahlung von Subventionen, Beiträgen, Zuschüssen, Prämien und wirtschaftlichen Vergünstigungen jeglicher Art ",null,"Vergabe von Beihilfen an Unternehmen, die in der Verarbeitung und Vermarktung- Milchsektor","D Phase2","Externe: landwirtschafltiche Unternehmen und Genossenschaften ","Förderung der Verarbeitung und Vermarktung landwirtschaflticher Erzeugnisse","wirtschafltiche Unterstützung","Antrag ","Auszahlung ","L.G. 11/98","- Amtsdirektor",555070.69999999995,15,"missbräuchliche Bewertung der Zulässigkeit des Antrags zum Zwecke der unrechtmäßigen Gewährung eines Beitrages bzw. der Auszahlung eines zu hohen Beitrages ","Zuständigkeit eines einzigen Bediensteten/einer einzigen Bediensteten für den gesamten Prozess",null,"Keine, es ist vollständig geregelt (1)","Ja, das Ergebnis des Entscheidungsprozesses ist an Subjekte außerhalb der Landesverwaltung gerichtet (5)","Nein, der Entscheidungsprozess betrifft ausschließlich die Landesverwaltung  (1)","Der Entscheidungsprozess bedingt die Gewährung von erheblichen Vergünstigungen bzw. Vorteilen an externe Subjekte (z.B. Erteilung von öffentlichen Aufträgen)  (5)","Nein  (1)","Ja, von einer anderen Person  (1)","Ja (1)","Nein (1)",16,{"$f":"ROUND(+Z8/8,1)","v":2},"Bis ungefähr 20%    (1)","Nein (1)","Nein    (0)","Die Position eines einfachen Mitarbeiters   (1)",3,0.8,1.6,1,null,"Rotation des Personals","Ergebniss der stichprobenartigen Überprüfung des Sachverhaltes ","Amt","bereits abgelaufen","Nein","Nein","neutral"]
[" 31.1 Amt für Viehzucht","- D) Gewährung und Auszahlung von Subventionen, Beiträgen, Zuschüssen, Prämien und wirtschaftlichen Vergünstigungen jeglicher Art ",null,"Vergabe von Beihilfen im Tiersektor und im Getreideanbau ","D Phase2","Externe : landwirtschaftliche Unternehmen, Organisationen der Viehwirtschaft","Förderung des Tiersektors und des Getreideanbaus","wirtschafltiche Unterstützung","Antrag ","Auszahlung ","L.G. 10/99","- Amtsdirektor",8636508.2400000002,4086,"missbräuchliche Bewertung der Zulässigkeit des Antrags zum Zwecke der unrechtmäßigen Gewährung eines Beitrages bzw. der Auszahlung eines zu hohen Beitrages ","Zuständigkeit eines einzigen Bediensteten/einer einzigen Bediensteten für den gesamten Prozess",null,"Keine, es ist vollständig geregelt (1)","Ja, das Ergebnis des Entscheidungsprozesses ist an Subjekte außerhalb der Landesverwaltung gerichtet (5)","Nein, der Entscheidungsprozess betrifft ausschließlich die Landesverwaltung  (1)","Der Entscheidungsprozess bedingt die Gewährung von erheblichen Vergünstigungen bzw. Vorteilen an externe Subjekte (z.B. Erteilung von öffentlichen Aufträgen)  (5)","Nein  (1)","Von mehreren Personen, darunter auch jene Person, die für vorhergehende Phasen zuständig war (3)","Ja (1)","Nein (1)",18,2.2999999999999998,"Von 60% bis ungefähr 100% (5)","Nein (1)","Nein    (0)","Die Position eines einfachen Mitarbeiters   (1)",7,1.8,4.1399999999999997,1,null,"Rotation des Personals","Ergebniss der stichprobenartigen Überprüfung des Sachverhaltes ","Amt ","bereits abgelaufen","Ja","Ja","neutral"]
[" 31.1 Amt für Viehzucht","- D) Gewährung und Auszahlung von Subventionen, Beiträgen, Zuschüssen, Prämien und wirtschaftlichen Vergünstigungen jeglicher Art ",null,"Vergabe von Beihilfen für eizelbetriebliche Investitionen im Bereich Viehwirtschaft","D Phase2","Externe : landwirtschaftliche Unternehmen","Förderung der landwirtschaftlichen Primärproduktion","wirtschafltiche Unterstützung","Antrag ","Auszahlung ","L.G. 11/98","- Amtsdirektor",192283.2,139,"missbräuchliche Bewertung der Zulässigkeit des Antrags zum Zwecke der unrechtmäßigen Gewährung eines Beitrages bzw. der Auszahlung eines zu hohen Beitrages ","Zuständigkeit eines einzigen Bediensteten/einer einzigen Bediensteten für den gesamten Prozess",null,"Keine, es ist vollständig geregelt (1)","Ja, das Ergebnis des Entscheidungsprozesses ist an Subjekte außerhalb der Landesverwaltung gerichtet (5)","Nein, der Entscheidungsprozess betrifft ausschließlich die Landesverwaltung  (1)","Der Entscheidungsprozess bedingt zwar die Gewährung von Vergünstigungen bzw. Vorteilen an externe Subjekte, aber diese Vorteile haben keine besondere wirtschaftliche Relevanz (z.B. Gewährung von Studienbeihilfen an Studenten)  (3)","Nein  (1)","Ja, von einer anderen Person  (1)","Ja (1)","Nein (1)",14,1.8,"Bis ungefähr 20%    (1)","Nein (1)","Nein    (0)","Die Position eines einfachen Mitarbeiters   (1)",3,0.8,1.4400000000000002,2,null,"Rotation des Personals","Ergebniss der stichprobenartigen Überprüfung des Sachverhaltes ","Amt ","6 Monate","Ja","Ja","neutral"]
[" 31.1 Amt für Viehzucht","- C) Ermächtigungen oder Konzessionen",null,"Ermächtigungen im Bereich der Tierzucht",null,"Externe : landwirtschaftliche Unternehmer und in der Tierzucht tätige Personen","Verbesserung der Tierzucht ","Durchführung der Tätigkeit","Antrag ","Genehmigung ","LGD 52/2018 D.LH. 16/2012","- Amtsdirektor",null,401,"missbräuchliche Ausübung der Kontrolltätigkeit","Einflussnahme seitens des Antragstellers  ",null,"Keine, es ist vollständig geregelt (1)","Ja, das Ergebnis des Entscheidungsprozesses ist an Subjekte außerhalb der Landesverwaltung gerichtet (5)","Nein, der Entscheidungsprozess betrifft ausschließlich die Landesverwaltung  (1)","Der Entscheidungsprozess bedingt zwar die Gewährung von Vergünstigungen bzw. Vorteilen an externe Subjekte, aber diese Vorteile haben keine besondere wirtschaftliche Relevanz (z.B. Gewährung von Studienbeihilfen an Studenten)  (3)","Nein  (1)","Ja, von einer anderen Person  (1)","Ja (1)","Nein (1)",14,1.8,"Bis ungefähr 20%    (1)","Nein (1)","Nein    (0)","Die Position eines einfachen Mitarbeiters   (1)",3,0.8,1.4400000000000002,5,null,"genauere interne Anweisungen und interne Schulung ","Anzahl der abgelehnten Anträge","Amt ","6 Monate","Ja","Ja","neutral"]
["31.2 Amt für Obst- und Weinbau ","- D) Gewährung und Auszahlung von Subventionen, Beiträgen, Zuschüssen, Prämien und wirtschaftlichen Vergünstigungen jeglicher Art ",null,"Vergabe von Beihilfen für die Rodung von Pflanzen","D) Phase 2","Öffentliche : Staat, Land Südtirol","Bekämpfung von Pflanzenkrankheiten","wirtschafltiche Unterstützung","Antrag ","Auszahlung ","L.G. 11/98","- Amtsdirektor",181514.5,14,"nicht  korrekte Einschätzung der objektiven Voraussetzungen","Komplexität der einschlägigen  Bestimmungen ",null,"Keine, es ist vollständig geregelt (1)","Ja, das Ergebnis des Entscheidungsprozesses ist an Subjekte außerhalb der Landesverwaltung gerichtet (5)","Nein, der Entscheidungsprozess betrifft ausschließlich die Landesverwaltung  (1)","Der Entscheidungsprozess bedingt zwar die Gewährung von Vergünstigungen bzw. Vorteilen an externe Subjekte, aber diese Vorteile haben keine besondere wirtschaftliche Relevanz (z.B. Gewährung von Studienbeihilfen an Studenten)  (3)","Nein  (1)","Ja, von einer anderen Person  (1)","Ja (1)","Nein (1)",14,1.8,"Bis ungefähr 20%    (1)","Nein (1)","Nein    (0)","Die Position eines einfachen Mitarbeiters   (1)",3,0.8,1.4400000000000002,4,null,"verstärkte Kontrolle  ","Überprüfung der Ergebnisse der verstärkten Kontrollen ","Amt","bereits abgelaufen","Ja","Ja","wirksam"]
["31.2 Amt für Obst- und Weinbau ","- D) Gewährung und Auszahlung von Subventionen, Beiträgen, Zuschüssen, Prämien und wirtschaftlichen Vergünstigungen jeglicher Art ",null,"Vergabe von Beihilfen im Bereich Verarbeitung und Vermarktung Obst- und Weinbau ","D) Phase 2","Externe : landwirtschaftliche Unternehmen","Förderung der Verarbeitung und Vermarktung landwirtschaflticher Erzeugnisse","wirtschafltiche Unterstützung","Antrag","Auszahlung ","L.G. 11/98","- Amtsdirektor",{"$f":"429580+448750","v":878330},45,"missbräuchliche Bewertung hinsichtlich der Zulässigkeit des Antrages und Gewährung eines zu hohen Beitrages","Zuständigkeit eines einzigen Bediensteten/einer einzigen Bediensteten für den gesamten Prozess",null,"Keine, es ist vollständig geregelt (1)","Ja, das Ergebnis des Entscheidungsprozesses ist an Subjekte außerhalb der Landesverwaltung gerichtet (5)","Nein, der Entscheidungsprozess betrifft ausschließlich die Landesverwaltung  (1)","Der Entscheidungsprozess bedingt zwar die Gewährung von Vergünstigungen bzw. Vorteilen an externe Subjekte, aber diese Vorteile haben keine besondere wirtschaftliche Relevanz (z.B. Gewährung von Studienbeihilfen an Studenten)  (3)","Nein  (1)","Ja, von einer anderen Person  (1)","Ja (1)","Nein (1)",14,1.8,"Von 20% bis ungefähr 60%    (3)","Nein (1)","Nein    (0)","Die Position eines einfachen Mitarbeiters   (1)",5,1.3,{"$f":"+AA13*AG13","v":2.3400000000000003},4,null,"Rotation des Personals","Ergebniss der stichprobenartigen Überprüfung des Sachverhaltes ","Amt ","bereits abgelaufen","Ja","Ja","wirksam"]
["31.2 Amt für Obst- und Weinbau ","- D) Gewährung und Auszahlung von Subventionen, Beiträgen, Zuschüssen, Prämien und wirtschaftlichen Vergünstigungen jeglicher Art ",null,"Vergabe von Beihilfen für Investitionen in Gärtnereien und für den Stein- und Beerenobstbau ","D) Phase 2","Externe : landwirtschaftliche Unternehmen","Förderung der landwirtschaftlichen Primärproduktion","wirtschafltiche Unterstützung","Antrag ","Auszahlung ","L.G. 11/98","- Amtsdirektor",440709,9,"missbräuchliche Bewertung hinsichtlich der Zulässigkeit des Antrages und Gewährung eines zu hohen Beitrages","Komplexität der einschlägigen Bestimmungen ",null,"Keine, es ist vollständig geregelt (1)","Ja, das Ergebnis des Entscheidungsprozesses ist an Subjekte außerhalb der Landesverwaltung gerichtet (5)","Nein, der Entscheidungsprozess betrifft ausschließlich die Landesverwaltung  (1)","Der Entscheidungsprozess bedingt zwar die Gewährung von Vergünstigungen bzw. Vorteilen an externe Subjekte, aber diese Vorteile haben keine besondere wirtschaftliche Relevanz (z.B. Gewährung von Studienbeihilfen an Studenten)  (3)","Nein  (1)","Ja, von einer anderen Person  (1)","Ja (1)","Nein (1)",14,1.8,"Bis ungefähr 20%    (1)","Nein (1)","Nein    (0)","Die Position eines einfachen Mitarbeiters   (1)",3,0.8,{"$f":"+AA14*AG14","v":1.4400000000000002},3,null,"verstärkte Kontrolle  ","Überprüfung der Ergebnisse der verstärkten Kontrollen ","Amt ","bereits abgelaufen","Ja","Ja","wirksam"]
["31.2 Amt für Obst- und Weinbau ","- C) Ermächtigungen oder Konzessionen",null,"Neuausstellung/Verlängerung des Befähigungsausweises für den Ankauf von Pflanzenschutzmitteln ",null,"Externe : physische Personen, die in landwirtschafltichen Unternehmen tätig sind sowie Berater ","Befähigung gemäß geltender Bestimmungn nachweisen","Befähigung zu erlangen","Antrag ","Ausstellung/Verlängerung","D.P.R. 290/2001 D.Lgs. 150/2012","- Amtsdirektor",null,{"$f":"988+413","v":1401},"missbräulicher Erlass von  Genehmigungen, um gewisse Subjekte zu begünstigen ","Durchführung des Verfahrens seintens  weniger Bediensteten",null,"Keine, es ist vollständig geregelt (1)","Ja, das Ergebnis des Entscheidungsprozesses ist an Subjekte außerhalb der Landesverwaltung gerichtet (5)","Nein, der Entscheidungsprozess betrifft ausschließlich die Landesverwaltung  (1)","Der Entscheidungsprozess bedingt zwar die Gewährung von Vergünstigungen bzw. Vorteilen an externe Subjekte, aber diese Vorteile haben keine besondere wirtschaftliche Relevanz (z.B. Gewährung von Studienbeihilfen an Studenten)  (3)","Nein  (1)","Nein, die Kontrolle wird von derselben Person ausgeübt (4) ","Ja (1)","Nein (1)",17,2.1,"Von 20% bis ungefähr 60%    (3)","Nein (1)","Nein    (0)","Die Position eines einfachen Mitarbeiters   (1)",5,1.3,2.7300000000000004,3,null,"stärkere Rotation des Personals ","Ergebniss der stichprobenartigen Überprüfung ","Amt ","bereits abgelaufen","Ja","Ja","wirksam"]
["31.2 Amt für Obst- und Weinbau ","- C) Ermächtigungen oder Konzessionen",null,"Phytosanitäre Ermächti-gung für Produktion und Handel von Pflanzen ",null,"Externe : Unternehmen, die Pflanzmaterial erzeugen oder mit diesem Handel betreiben ","Gesundes Pflanzmaterial zu gewährleisten","Ermächtigung zu erlangen","Antrag ","Ermächtigung","GvD 214/2005","- Amtsdirektor",null,15,"missbräulicher Erlass von  Genehmigungen, um gewisse Subjekte zu begünstigen ","unzureichende Kompetenz des Bediensteten",null,"Keine, es ist vollständig geregelt (1)","Ja, das Ergebnis des Entscheidungsprozesses ist an Subjekte außerhalb der Landesverwaltung gerichtet (5)","Nein, der Entscheidungsprozess betrifft ausschließlich die Landesverwaltung  (1)","Der Entscheidungsprozess bedingt zwar die Gewährung von Vergünstigungen bzw. Vorteilen an externe Subjekte, aber diese Vorteile haben keine besondere wirtschaftliche Relevanz (z.B. Gewährung von Studienbeihilfen an Studenten)  (3)","Nein  (1)","Nein, die Kontrolle wird von derselben Person ausgeübt (4) ","Ja (1)","Nein (1)",17,2.1,"Bis ungefähr 20%    (1)","Nein (1)","Nein    (0)","Die Position eines einfachen Mitarbeiters   (1)",3,0.8,1.6800000000000002,1,null,"regelmäßige Schulung des Personals ","Ergebniss der stichprobenartigen Überprüfung ","Amt ","bereits abgelaufen","Ja","Ja","wirksam"]
["31.2 Amt für Obst- und Weinbau ","- I) Kontrollen, Überprüfungen, Inspektionen und Sanktionen",null,"Ausstellung von Pflanzen-gesundheitszeugnissen ",null,"Externe: Unternehmen, die mit Pflanzenerzeugnissen Handel betreiben","Anforderungen bezüglich des  Gesundheitszustandes des Ziellandes zu garantieren","Zeugnisse zu erhalten","Antrag ","Ausstellung","GvD 214/2005","- Amtsdirektor",null,7420,"missbräuliche Ausübung der Kontrollfunktion","unzureichende Kompetenz des Bediensteten",null,"Keine, es ist vollständig geregelt (1)","Ja, das Ergebnis des Entscheidungsprozesses ist an Subjekte außerhalb der Landesverwaltung gerichtet (5)","Nein, der Entscheidungsprozess betrifft ausschließlich die Landesverwaltung  (1)","Der Entscheidungsprozess bedingt zwar die Gewährung von Vergünstigungen bzw. Vorteilen an externe Subjekte, aber diese Vorteile haben keine besondere wirtschaftliche Relevanz (z.B. Gewährung von Studienbeihilfen an Studenten)  (3)","Nein  (1)","Ja, von einer anderen Person  (1)","Ja (1)","Nein (1)",14,1.8,"Bis ungefähr 20%    (1)","Nein (1)","Nein    (0)","Die Position eines einfachen Mitarbeiters   (1)",3,0.8,1.4400000000000002,6,null,"regelmäßige Schulung des Personals ","Ergebniss der stichprobenartigen Überprüfung  ","Amt ","bereits abgelaufen","Ja","Ja","wirksam"]
["31.2 Amt für Obst- und Weinbau ","- C) Ermächtigungen oder Konzessionen",null,"Genehmigung für die Anpflanzung von Rebflächen",null,"Externe: landwirtschaftliche Unternehmen","Einhaltung der gesetzlichen Bestimmung im Bereich der europäischen Rebpflanzregelung","Pflanzgenehmigung zu erhalten","Antrag ","Genehmigung ","Ver. (EU) 1308/13 + 555/08","- Amtsdirektor",null,1635,"missbräuchliche Genehmigung,  um gewisse Subjekte zu begünstigen","hohe Komplexität der anzuwendenden Bestimmungen ",null,"Keine, es ist vollständig geregelt (1)","Ja, das Ergebnis des Entscheidungsprozesses ist an Subjekte außerhalb der Landesverwaltung gerichtet (5)","Nein, der Entscheidungsprozess betrifft ausschließlich die Landesverwaltung  (1)","Der Entscheidungsprozess bedingt zwar die Gewährung von Vergünstigungen bzw. Vorteilen an externe Subjekte, aber diese Vorteile haben keine besondere wirtschaftliche Relevanz (z.B. Gewährung von Studienbeihilfen an Studenten)  (3)","Nein  (1)","Von mehreren Personen, darunter auch jene Person, die für vorhergehende Phasen zuständig war (3)","Ja (1)","Nein (1)",16,2,"Von 20% bis ungefähr 60%    (3)","Nein (1)","Nein    (0)","Die Position eines einfachen Mitarbeiters   (1)",5,1.3,2.6,4,null," interne Schulungen und klare Anweisungen ","Ergebniss der stichprobenartigen Überprüfung  ","Amt ","bereits abgelaufen","Ja","Ja","wirksam"]
["31.2 Amt für Obst- und Weinbau ","- D) Gewährung und Auszahlung von Subventionen, Beiträgen, Zuschüssen, Prämien und wirtschaftlichen Vergünstigungen jeglicher Art ",null,"Vergabe von Beihilfen zur Qualitäts- und Strukturverbesserung in der Saatkartoffelproduktion","D) Phase 2","Externe: landwirtschaftliche Genossenschaft","Erhaltung des Gesundheitszustandes des Saatgutes","wirtschafltiche Unterstützung","Antrag ","Auszahlung ","LG 11/98","- Amtsdirektor",65000,1,"nicht gänzlich korrekte Einschätzung der objektiven Voraussetzungen","Zuständigkeit eines einzigen Bediensteten/einer einzigen Bediensteten für den gesamten Prozess",null,"Keine, es ist vollständig geregelt (1)","Ja, das Ergebnis des Entscheidungsprozesses ist an Subjekte außerhalb der Landesverwaltung gerichtet (5)","Nein, der Entscheidungsprozess betrifft ausschließlich die Landesverwaltung  (1)","Der Entscheidungsprozess bedingt zwar die Gewährung von Vergünstigungen bzw. Vorteilen an externe Subjekte, aber diese Vorteile haben keine besondere wirtschaftliche Relevanz (z.B. Gewährung von Studienbeihilfen an Studenten)  (3)","Nein  (1)","Ja, von einer anderen Person  (1)","Ja (1)","Nein (1)",14,1.8,"Bis ungefähr 20%    (1)","Nein (1)","Nein    (0)","Die Position einer Führungskraft   (5) ",7,1.8,3.24,2,null,"Rotation des Personals","Ergebniss der stichprobenartigen Überprüfung ","Amt ","bereits abgelaufen","Ja","Ja","wirksam"]
["31.3. Amt für bäuerliches Eigentum","- Weiteres (angeben ob weitere riskante Tätigkeiten außer der oben genannten bestehen)","Genehmigung zum Kauf oder Verkauf von unbeweglichen Gütern","Genehmigungen Ankauf und Verkauf von Gütern von Agrargemeinschaften und Übertragung von Anteilen ",null,"Externe : Agrargemeinschaften, welche Geminnutzungsgüter verwalten","Kontrolle über die Rechtmäßigkeit der Operationen ","Durchführung der Operationen","Antrag","Genehmigung ","Art. 16 LG 2/1959","- Amtsdirektor",null,95,"missbräuchlicher Erlass von Genehmigungen, um gewisse Subjekte zu begünstigen","Zuständigkeit eines einzigen Bediensteten/einer einzigen Bediensteten für den gesamten Prozess",null,"Das Verfahren ist teilweise von Gesetzen und/oder Verwaltungsakten geregelt (3) ","Ja, das Ergebnis des Entscheidungsprozesses ist an Subjekte außerhalb der Landesverwaltung gerichtet (5)","Nein, der Entscheidungsprozess betrifft ausschließlich die Landesverwaltung  (1)","Der Entscheidungsprozess hat ausschließlich interne Bedeutung  (1)","Nein  (1)","Ja, von einer anderen Person  (1)","Zum Teil (3)","Nein (1)",16,2,"Bis ungefähr 20%    (1)","Nein (1)","Nein    (0)","Die Position eines einfachen Mitarbeiters   (1)",3,0.8,1.6,5,null,"Verstärkte Kontrolle ","Ergebnisse der Stichprobenkontrollen ","Amt ","bereits abgelaufen","Ja","Ja","wirksam"]
["31.3. Amt für bäuerliches Eigentum","- Weiteres (angeben ob weitere riskante Tätigkeiten außer der oben genannten bestehen)","Gutachten für den Erwerb und die \nVeräußerung von Gemeinnutzungsgütern\nsowie Freischreibungen","Gutachten für den Erwerb und die \nVeräußerung von Gemeinnutzungsgütern\nsowie Freischreibungen",null,"Externe : Agrargemeinschaften, welche Geminnutzungsgüter verwalten","Kontrolle über die Rechtmäßigkeit der Operationen ","positives Gutachten","Antrag ","Gutachten","G. 1766/1927 Art. 6/bis und 6/ter LG \n16/1980","- Amtsdirektor",null,173,"missbräuchlicher Erlass von Genehmigungen, um gewisse Subjekte zu begünstigen","Zuständigkeit eines einzigen Bediensteten/einer einzigen Bediensteten für den gesamten Prozess",null,"Das Verfahren ist teilweise von Gesetzen und/oder Verwaltungsakten geregelt (3) ","Ja, das Ergebnis des Entscheidungsprozesses ist an Subjekte außerhalb der Landesverwaltung gerichtet (5)","Nein, der Entscheidungsprozess betrifft ausschließlich die Landesverwaltung  (1)","Der Entscheidungsprozess hat ausschließlich interne Bedeutung  (1)","Nein  (1)","Ja, von einer anderen Person  (1)","Zum Teil (3)","Nein (1)",16,2,"Bis ungefähr 20%    (1)","Nein (1)","Nein    (0)","Die Position eines einfachen Mitarbeiters   (1)",3,0.8,1.6,6,null,"Verstärkte Kontrolle ","Ergebnisse der Stichprobenkontrollen ","Amt ","bereits abgelaufen","Ja","Ja","wirksam"]
["31.3. Amt für bäuerliches Eigentum","- L) Programmierung und Verwaltung der EU-Fonds",null,"Gewährung der Erstniederlassungsprämie\nan Junglandwirte Maßnahme 6.1 ","D Phase  2","Externe: landwirtschafltiche Unternehmen  ","Förderung der Erstniederlassung durch Junglandwirte","wirtschaftliche Unterstützung","Antrag ","Gewährung","EU-VO;\n1305/2013\nBeschluss\nL.Reg. 1013/2015","- Amtsdirektor",5064000,226,"missbräuchliche Bewertung der Zulässigkeit des Antrages zum Zweck der unrechtmäßigen Gewährung eines Beitrages bzw. der Auszahlung eines zu hohen Beitrages","Einflussnahme seitens der Begünstigten ",null,"Keine, es ist vollständig geregelt (1)","Ja, das Ergebnis des Entscheidungsprozesses ist an Subjekte außerhalb der Landesverwaltung gerichtet (5)","Nein, der Entscheidungsprozess betrifft ausschließlich die Landesverwaltung  (1)","Der Entscheidungsprozess bedingt zwar die Gewährung von Vergünstigungen bzw. Vorteilen an externe Subjekte, aber diese Vorteile haben keine besondere wirtschaftliche Relevanz (z.B. Gewährung von Studienbeihilfen an Studenten)  (3)","Nein  (1)","Ja, von einer anderen Person  (1)","Ja (1)","Nein (1)",14,1.8,"Von 20% bis ungefähr 60%    (3)","Nein (1)","Nein    (0)","Die Position eines einfachen Mitarbeiters   (1)",5,1.3,2.3400000000000003,5,null,"Endgültiger Entscheidungsprozess durch die entsprechende Kommission","Ergebnisse der seitens der beauftragten Stellen durchgeführten Kontrollen ","Amt ","bereits abgelaufen","Ja","Ja","wirksam"]
["31.3. Amt für bäuerliches Eigentum","- Weiteres (angeben ob weitere riskante Tätigkeiten außer der oben genannten bestehen)","Anerkennung einer beruflichen Qualifikation","Anerkennung der Qualifikation als berufs-\nmäßiger landwirtschaftlicher Unternehmer",null,"Externe: landwirtschaftliche Unternehmen","Qualifikation als berufsmäßiger Landwirtschaflticher Unternehmer zu erteilen","Anerkennung zu erhalten","Antrag ","Bescheinigung","Lgs.D. Nr. 99/2004 in \ngeltender Fassung","- Amtsdirektor",null,18,"missbräuchliche Bewertung der Zulässigkeit des Antrages zum Zweck der unrechtmäßigen Anerkennung der beruflichen Qualifikation","Einflussnahme seitens der Begünstigten ",null,"Keine, es ist vollständig geregelt (1)","Ja, das Ergebnis des Entscheidungsprozesses ist an Subjekte außerhalb der Landesverwaltung gerichtet (5)","Nein, der Entscheidungsprozess betrifft ausschließlich die Landesverwaltung  (1)","Der Entscheidungsprozess bedingt zwar die Gewährung von Vergünstigungen bzw. Vorteilen an externe Subjekte, aber diese Vorteile haben keine besondere wirtschaftliche Relevanz (z.B. Gewährung von Studienbeihilfen an Studenten)  (3)","Nein  (1)","Nein, es ist keine Kontrolle vorgesehen  (5) ","Ja (1)","Nein (1)",18,2.2999999999999998,"Bis ungefähr 20%    (1)","Nein (1)","Nein    (0)","Die Position eines einfachen Mitarbeiters   (1)",3,0.8,1.8399999999999999,2,null,"verstärkte Kontrolle ","Ergebnisse der Stichprobenkontrollen ","Amt ","bereits abgelaufen","Ja","Ja","wirksam"]
["31.4. Amt für ländliches Bauwesen","- D) Gewährung und Auszahlung von Subventionen, Beiträgen, Zuschüssen, Prämien und wirtschaftlichen Vergünstigungen jeglicher Art ",null,"Gewährung von Beiträgen für betriebliche Investitionen ","D Phase 2","Externe: landwirtschaftliche Unternehmen","Förderung der landwirtschaftlichen Primärproduktion","wirtschaftliche Unterstützung","Antrag ","Gewährung","L.G. 11/1998","- Amtsdirektor",20567902.16,831,"missbräuchliche Bewertung hinsichtlich der Zulässigkeit des Antrages und Gewährung eines zu hohen Beitrages","Komplexität der anzuwendenden Bestimmungen ",null,"Keine, es ist vollständig geregelt (1)","Ja, das Ergebnis des Entscheidungsprozesses ist an Subjekte außerhalb der Landesverwaltung gerichtet (5)","Nein, der Entscheidungsprozess betrifft ausschließlich die Landesverwaltung  (1)","Der Entscheidungsprozess bedingt zwar die Gewährung von Vergünstigungen bzw. Vorteilen an externe Subjekte, aber diese Vorteile haben keine besondere wirtschaftliche Relevanz (z.B. Gewährung von Studienbeihilfen an Studenten)  (3)","Nein  (1)","Von mehreren Personen, darunter auch jene Person, die für vorhergehende Phasen zuständig war (3)","Ja (1)","Nein (1)",16,2,"Von 20% bis ungefähr 60%    (3)","Nein (1)","Nein    (0)","Die Position eines einfachen Mitarbeiters   (1)",5,1.3,2.6,2,null,"interne Schulungen und schrifliche interne Anleitungen ","Ergebnisse der stichprobenartigen Überprüfung der bearbeiteten Anträge ","Amt ","bereits abgelaufen","Ja","Ja","wirksam"]
["31.4. Amt für ländliches Bauwesen","- D) Gewährung und Auszahlung von Subventionen, Beiträgen, Zuschüssen, Prämien und wirtschaftlichen Vergünstigungen jeglicher Art ",null,"Gewährung von Beiträgen für die Förderung landwirtschaftlicher Wohnbauten","D Phase 2","Externe: landwirtschaftliche Unternehmen","Förderung der landwirtschaftlichen Wohnbauten","soziale Unterstützung","Antrag","Gewährung","L.G. 1/1974","- Amtsdirektor",9230760.5,168,"missbräuchliche Bewertung hinsichtlich der Zulässigkeit des Antrages und Gewährung eines zu hohen Beitrages","Komplexität der anzuwendenden Bestimmungen ",null,"Keine, es ist vollständig geregelt (1)","Ja, das Ergebnis des Entscheidungsprozesses ist an Subjekte außerhalb der Landesverwaltung gerichtet (5)","Nein, der Entscheidungsprozess betrifft ausschließlich die Landesverwaltung  (1)","Der Entscheidungsprozess bedingt zwar die Gewährung von Vergünstigungen bzw. Vorteilen an externe Subjekte, aber diese Vorteile haben keine besondere wirtschaftliche Relevanz (z.B. Gewährung von Studienbeihilfen an Studenten)  (3)","Nein  (1)","Von mehreren Personen, darunter auch jene Person, die für vorhergehende Phasen zuständig war (3)","Ja (1)","Nein (1)",16,2,"Von 20% bis ungefähr 60%    (3)","Nein (1)","Nein    (0)","Die Position eines einfachen Mitarbeiters   (1)",5,1.3,2.6,1,null,"interne Schulungen und schrifliche interne Anleitungen ","Ergebnisse der stichprobenartigen Überprüfung der bearbeiteten Anträge ","Amt ","bereits abgelaufen","Ja","Ja","wirksam"]
["31.4. Amt für ländliches Bauwesen","- D) Gewährung und Auszahlung von Subventionen, Beiträgen, Zuschüssen, Prämien und wirtschaftlichen Vergünstigungen jeglicher Art ",null,"Gewährung von Beiträgen für Investitionen im Bereich des Urlaub auf dem Bauernhof","D Phase 2","Externe: landwirtschaftliche Unternehmen","Förderung der Urlaub auf dem Bauernhof-Tätigkeiten ","wirtschaftliche Unterstützung ","Antrag","Gewährung","L.G. 7/2008","- Amtsdirektor",3479605,88,"missbräuchliche Bewertung hinsichtlich der Zulässigkeit des Antrages und Gewährung eines zu hohen Beitrages","Komplexität der anzuwendenden Bestimmungen ",null,"Keine, es ist vollständig geregelt (1)","Ja, das Ergebnis des Entscheidungsprozesses ist an Subjekte außerhalb der Landesverwaltung gerichtet (5)","Nein, der Entscheidungsprozess betrifft ausschließlich die Landesverwaltung  (1)","Der Entscheidungsprozess bedingt zwar die Gewährung von Vergünstigungen bzw. Vorteilen an externe Subjekte, aber diese Vorteile haben keine besondere wirtschaftliche Relevanz (z.B. Gewährung von Studienbeihilfen an Studenten)  (3)","Nein  (1)","Von mehreren Personen, darunter auch jene Person, die für vorhergehende Phasen zuständig war (3)","Ja (1)","Nein (1)",16,2,"Von 20% bis ungefähr 60%    (3)","Nein (1)","Nein    (0)","Die Position eines einfachen Mitarbeiters   (1)",5,1.3,2.6,3,null,"interne Schulungen und schrifliche interne Anleitungen ","Ergebnisse der stichprobenartigen Überprüfung der bearbeiteten Anträge ","Amt ","bereits abgelaufen","Ja","Ja","wirksam"]
["31.4. Amt für ländliches Bauwesen","- C) Ermächtigungen oder Konzessionen",null,"Erweiterung des Einzugsgebietes der Konsortien",null,"Externe:  Bodenverbesserungskonsortien Öffentliche: Bonifizierungskonsortien","Schaffung der Voraussetzung für die Durchführung von Bodenverbesserungsarbeiten und Bonifizierungsbauten ","Durchführung von Bodenverbesserungsarbeiten und Bonifizierungsbauten ","Antrag ","Genehmigung ","L.G. 5/2009","- Amtsdirektor",null,12,"missbräuchliche Bewertung hinsichtlich der Zulässigkeit des Antrages ","verlängerte und ausschließliche Ausübung der Zuständigkeiten seitens weniger Mitarbeiter/innen",null,"Keine, es ist vollständig geregelt (1)","Ja, das Ergebnis des Entscheidungsprozesses ist an Subjekte außerhalb der Landesverwaltung gerichtet (5)","Nein, der Entscheidungsprozess betrifft ausschließlich die Landesverwaltung  (1)","Der Entscheidungsprozess bedingt die Gewährung von erheblichen Vergünstigungen bzw. Vorteilen an externe Subjekte (z.B. Erteilung von öffentlichen Aufträgen)  (5)","Nein  (1)","Ja, von einer anderen Person  (1)","Ja (1)","Ja (5)",20,2.5,"Bis ungefähr 20%    (1)","Nein (1)","Nein    (0)","Die Position eines einfachen Mitarbeiters   (1)",3,0.8,2,5,null,"Rotation der zuständigen Mitarbeiter/innen","Bewertung der eventuellen Beschwerden und Einwände im Falle von Ablehnung ","Amt ","1 Jahr"]
["31.4. Amt für ländliches Bauwesen","- Weiteres (angeben ob weitere riskante Tätigkeiten außer der oben genannten bestehen)","Gründung von Bodenverbesserungskonsortien","Gründung von Bodenverbesserungskonsortien",null,"Externe: Bodenverbesserungskonsortien","Schaffung der Voraussetzung für die Durchführung von Bodenverbesserungsarbeiten und Bonifizierungsbauten ","Durchführung von Bodenverbesserungsarbeiten und Bonifizierungsbauten ","Antrag","Genehmigung ","L.G. 5/2009","- Amtsdirektor",null,2,"missbräuchliche Bewertung hinsichtlich der Zulässigkeit des Antrages ","verlängerte und ausschließliche Ausübung der Zuständigkeiten seitens weniger Mitarbeiter/innen",null,"Keine, es ist vollständig geregelt (1)","Ja, das Ergebnis des Entscheidungsprozesses ist an Subjekte außerhalb der Landesverwaltung gerichtet (5)","Nein, der Entscheidungsprozess betrifft ausschließlich die Landesverwaltung  (1)","Der Entscheidungsprozess bedingt die Gewährung von erheblichen Vergünstigungen bzw. Vorteilen an externe Subjekte (z.B. Erteilung von öffentlichen Aufträgen)  (5)","Nein  (1)","Von mehreren Personen, darunter auch jene Person, die für vorhergehende Phasen zuständig war (3)","Ja (1)","Ja (5)",22,2.8,"Bis ungefähr 20%    (1)","Nein (1)","Nein    (0)","Die Position eines einfachen Mitarbeiters   (1)",3,0.8,2.2399999999999998,1,null,"Rotation der zuständigen Mitarbeiter/innen, Beteiligung mehrerer Mitarbeiter an der Abwicklung des Verfahrens","Bewertung der eventuellen Beschwerden und Einwände im Falle von Ablehnung ","Amt ","bereits abgelaufen","Ja","Ja","wirksam"]
["31.4. Amt für ländliches Bauwesen","- D) Gewährung und Auszahlung von Subventionen, Beiträgen, Zuschüssen, Prämien und wirtschaftlichen Vergünstigungen jeglicher Art ",null,"Gewährung von Beiträgen für die ordentliche Instandhaltung und den Betrieb der Bonifizierungsbauten von Landesinteresse sowie für Betriebsspesen und buchalterische Hilfestellung","D) Phase  1","Öffentliche: Bonifizierungskonsortien ","Bonifizierungsbauten von Landesinteresse Instand zu halten ","wirtschaftliche Unterstützung","Antrag ","Gewährung","L.G. 5/2009","- Amtsdirektor",1160000,9,"Missbräuliche Bewertung der Beschaffenheit der Bauten zwecks Klassifizierung im Hinblick auf die Beitragshöhe bzw. hinsichtlich der Zulässigekit des Antrages ","verlängerte und ausschließliche Ausübung der Zuständigkeiten seitens weniger Mitarbeiter/innen",null,"Keine, es ist vollständig geregelt (1)","Ja, das Ergebnis des Entscheidungsprozesses ist an Subjekte außerhalb der Landesverwaltung gerichtet (5)","Nein, der Entscheidungsprozess betrifft ausschließlich die Landesverwaltung  (1)","Der Entscheidungsprozess bedingt zwar die Gewährung von Vergünstigungen bzw. Vorteilen an externe Subjekte, aber diese Vorteile haben keine besondere wirtschaftliche Relevanz (z.B. Gewährung von Studienbeihilfen an Studenten)  (3)","Nein  (1)","Ja, von einer anderen Person  (1)","Ja (1)","Nein (1)",14,1.8,"Von 20% bis ungefähr 60%    (3)","Nein (1)","Nein    (0)","Die Position eines einfachen Mitarbeiters   (1)",5,1.3,2.3400000000000003,2,null,"Rotation der zuständigen Mitarbeiter/innen","Bewertung der eventuellen Beschwerden und Einwände im Falle von Ablehnung ","Amt ","bereits abgelaufen","Ja","Ja","neutral"]
["31.4. Amt für ländliches Bauwesen","- D) Gewährung und Auszahlung von Subventionen, Beiträgen, Zuschüssen, Prämien und wirtschaftlichen Vergünstigungen jeglicher Art ",null,"Finanzierung der Bonfizierungsbauten von Landesinteresse ","D) Phase 2","Öffentliche: Bonifizierungskonsortien "," Sicherstellung der Wasserversorgung , Gewährleitung des Wasserabflusses in der Talsohle, Erschließung von Kulturgründen","finanzielle Unterstützung bei der Asuübung der institutionellen Aufgaben","Antrag ","Gewährung","L.G. 5/2009","- Amtsdirektor",1425076,9,"missbräuchliche Bewertung hinsichtlich der Zulässigkeit des Antrages und Gewährung eines zu hohen Beitrages","verlängerte und ausschließliche Ausübung der Zuständigkeiten seitens weniger Mitarbeiter/innen",null,"Keine, es ist vollständig geregelt (1)","Ja, das Ergebnis des Entscheidungsprozesses ist an Subjekte außerhalb der Landesverwaltung gerichtet (5)","Nein, der Entscheidungsprozess betrifft ausschließlich die Landesverwaltung  (1)","Der Entscheidungsprozess bedingt zwar die Gewährung von Vergünstigungen bzw. Vorteilen an externe Subjekte, aber diese Vorteile haben keine besondere wirtschaftliche Relevanz (z.B. Gewährung von Studienbeihilfen an Studenten)  (3)","Nein  (1)","Ja, von einer anderen Person  (1)","Ja (1)","Nein (1)",14,1.8,"Von 20% bis ungefähr 60%    (3)","Nein (1)","Nein    (0)","Die Position eines einfachen Mitarbeiters   (1)",5,1.3,2.3400000000000003,1,null,"Rotation der zuständigen Mitarbeiter/innen","Bewertung der eventuellen Beschwerden und Einwände im Falle von Ablehnung ","Amt ","1 Jahr"]
["31.4. Amt für ländliches Bauwesen","- D) Gewährung und Auszahlung von Subventionen, Beiträgen, Zuschüssen, Prämien und wirtschaftlichen Vergünstigungen jeglicher Art ",null,"Gewährung von Beiträgen  für Bodenverbesserungsarbeiten","D) Phase 2","Externe: Bodenverbesserungskonsortien","Förderung der landwirtschaftlichen Primärproduktion","wirtschaftliche Unterstützung","Antrag","Gewährung","L.G. 5/2009","- Amtsdirektor",0,0,"missbräuchliche Bewertung hinsichtlich der Zulässigkeit des Antrages und Gewährung eines zu hohen Beitrages","Komplexität der anzuwendenden Bestimmungen ",null,"Keine, es ist vollständig geregelt (1)","Ja, das Ergebnis des Entscheidungsprozesses ist an Subjekte außerhalb der Landesverwaltung gerichtet (5)","Nein, der Entscheidungsprozess betrifft ausschließlich die Landesverwaltung  (1)","Der Entscheidungsprozess bedingt zwar die Gewährung von Vergünstigungen bzw. Vorteilen an externe Subjekte, aber diese Vorteile haben keine besondere wirtschaftliche Relevanz (z.B. Gewährung von Studienbeihilfen an Studenten)  (3)","Nein  (1)","Ja, von einer anderen Person  (1)","Ja (1)","Nein (1)",14,1.8,"Von 20% bis ungefähr 60%    (3)","Nein (1)","Nein    (0)","Die Position eines einfachen Mitarbeiters   (1)",5,1.3,2.3400000000000003,3,null,"interne Schulungen und schrifliche interne Anleitungen ","Ergebniss der stichprobenartigen Überprüfung der bearbeiteten Anträge ","Amt ","1 Jahr"]
["31.4. Amt für ländliches Bauwesen","- D) Gewährung und Auszahlung von Subventionen, Beiträgen, Zuschüssen, Prämien und wirtschaftlichen Vergünstigungen jeglicher Art ",null,"Gewährung von Beiträgen an die Bonifizierungskonsortien II. Grades ","D) Phase 1","Öffentliche: Bonifizierungskonsortien ","Förderung der Beratung- und Dienstleistungstätigkeit zugunsten der Mitgliedskonsortien","finanzielle Unterstützung bei der Asuübung der institutionellen Aufgaben","Antrag","Gewährung","L.G. 5/2009","- Amtsdirektor",189050,1,"missbräuchliche Bewertung hinsichtlich der Zulässigkeit des Antrages und Gewährung eines zu hohen Beitrages","verlängerte und ausschließliche Ausübung der Zuständigkeiten seitens weniger Mitarbeiter/innen",null,"Keine, es ist vollständig geregelt (1)","Ja, das Ergebnis des Entscheidungsprozesses ist an Subjekte außerhalb der Landesverwaltung gerichtet (5)","Nein, der Entscheidungsprozess betrifft ausschließlich die Landesverwaltung  (1)","Der Entscheidungsprozess bedingt zwar die Gewährung von Vergünstigungen bzw. Vorteilen an externe Subjekte, aber diese Vorteile haben keine besondere wirtschaftliche Relevanz (z.B. Gewährung von Studienbeihilfen an Studenten)  (3)","Nein  (1)","Ja, von einer anderen Person  (1)","Ja (1)","Nein (1)",14,1.8,"Bis ungefähr 20%    (1)","Nein (1)","Nein    (0)","Die Position eines einfachen Mitarbeiters   (1)",3,0.8,1.4400000000000002,1,null,"Rotation der zuständigen Mitarbeiter/innen","Bewertung der eventuellen Beschwerden und Einwände im Falle von Ablehnung ","Amt ","1 Jahr"]
["31.4. Amt für ländliches Bauwesen","- Weiteres (angeben ob weitere riskante Tätigkeiten außer der oben genannten bestehen)","Teilweiser Widerruf der Unteilbarkeitsbeschränkung bei Grundzusammenlegungen\n","Teilweiser Widerruf der Unteilbarkeitsbeschränkung bei Grundzusammenlegungen\n",null,"Externe: Private Öffentliche: Gemeinden ","Aufhebung der Beschränkung ","Aufhebung der Beschränkung ","Antrag ","Genehmigung ","L.G. 5/2009","- Amtsdirektor",null,8,"missbräuchliche Bewertung hinsichtlich der Zulässigkeit des Antrages ","verlängerte und ausschließliche Ausübung der Zuständigkeiten seitens eines Mitarbeiters/einer Mitarbeiterin",null,"Keine, es ist vollständig geregelt (1)","Ja, das Ergebnis des Entscheidungsprozesses ist an Subjekte außerhalb der Landesverwaltung gerichtet (5)","Nein, der Entscheidungsprozess betrifft ausschließlich die Landesverwaltung  (1)","Der Entscheidungsprozess hat ausschließlich interne Bedeutung  (1)","Nein  (1)","Ja, von einer anderen Person  (1)","Ja (1)","Nein (1)",12,1.5,"Bis ungefähr 20%    (1)","Nein (1)","Nein    (0)","Die Position eines einfachen Mitarbeiters   (1)",3,0.8,1.2000000000000002,1,null,"Rotation der zuständigen Mitarbeiter/innen","Bewertung der eventuellen Beschwerden und Einwände seitens der Mitglieder oder Dritter ","Amt ","bereits abgelaufen","Ja","Ja","wirksam"]
["31.4. Amt für ländliches Bauwesen","- Weiteres (angeben ob weitere riskante Tätigkeiten außer der oben genannten bestehen)","Einstufung der Betriebe, die Urlaub auf dem Bauerhof, anbieten ","Klassifizierung  der Urlaub auf dem Bauernhof-Betriebe \n ",null,"Externe: landwirtschaftliche Unternehmen ","Klassifizieurng der anbietenden Beherbungsstrukturen ","Klassifizierung","Antrag","Bewertung ","DLH 32/1996 - Art. 1/ter","- Amtsdirektor",null,198,"missbräuchliche Bewertung der Vorraussetzungen  ","Komplexität der anzuwendenden Bestimmungen ",null,"Keine, es ist vollständig geregelt (1)","Ja, das Ergebnis des Entscheidungsprozesses ist an Subjekte außerhalb der Landesverwaltung gerichtet (5)","Nein, der Entscheidungsprozess betrifft ausschließlich die Landesverwaltung  (1)","Der Entscheidungsprozess bedingt zwar die Gewährung von Vergünstigungen bzw. Vorteilen an externe Subjekte, aber diese Vorteile haben keine besondere wirtschaftliche Relevanz (z.B. Gewährung von Studienbeihilfen an Studenten)  (3)","Nein  (1)","Ja, von einer anderen Person  (1)","Ja (1)","Nein (1)",14,1.8,"Bis ungefähr 20%    (1)","Nein (1)","Nein    (0)","Die Position einer Führungskraft   (5) ",7,1.8,3.24,1,null,"klarere interne Anweisungen ","Bewertung der eingereichten Aufsichtsbeschwerden und allfälligen Einwände ","Amt","bereits abgelaufen","Ja","Ja","wirksam"]
["31.4. Amt für ländliches Bauwesen","- L) Programmierung und Verwaltung der EU-Fonds",null,"Maßnahme 4.1 des ELR 2014-2020",null,"Externe: landwirtschaftliche Unternehmen","Förderung der landwirtschaftlchen Primärproduktion","wirtschaftliche Unterstützung ","Antrag ","Gewährung","Entwicklungsprogramm für den ländlichen Raum-VO. (EU)\nNr. 1305/2013","- Amtsdirektor",3418071.5,14,"missbräuchliche Bewertung hinsichtlich der Zulässigkeit des Antrages und Gewährung eines zu hohen Beitrages","Komplexität der anzuwendenden Bestimmungen ",null,"Keine, es ist vollständig geregelt (1)","Ja, das Ergebnis des Entscheidungsprozesses ist an Subjekte außerhalb der Landesverwaltung gerichtet (5)","Nein, der Entscheidungsprozess betrifft ausschließlich die Landesverwaltung  (1)","Der Entscheidungsprozess bedingt die Gewährung von erheblichen Vergünstigungen bzw. Vorteilen an externe Subjekte (z.B. Erteilung von öffentlichen Aufträgen)  (5)","Nein  (1)","Ja, von einer anderen Person  (1)","Ja (1)","Nein (1)",16,2,"Bis ungefähr 20%    (1)","Nein (1)","Nein    (0)","Die Position eines einfachen Mitarbeiters   (1)",3,0.8,1.6,4,null,"Überprüfung der korrekten Anwendung der in den Handbüchern enthaltenen Verfahrensabläufen","Ergebnisse der seitens der beauftragten Stellen durchgeführten Kontrollen (Zahlstelle, Zertifizierungsstelle, EU-Behörde)","Amt","bereits abgelaufen","Ja","Ja","wirksam"]
["31.5. Amt für Landmaschinen","- D) Gewährung und Auszahlung von Subventionen, Beiträgen, Zuschüssen, Prämien und wirtschaftlichen Vergünstigungen jeglicher Art ",null,"Gewährung von Verlustbeiträgen für den Kauf von landwirtschaftlichen Maschinen","D Phase 2","Externe: landwirtschaftliche Unternehmen","Förderung der landwirtschaftlchen Primärproduktion","wirtschaftliche Unterstützung ","Antrag","Gewährung","L.G. 11/1998","- Amtsdirektor",2999998,581,"missbräuchliche Bewertung hinsichtlich der Zulässigkeit des Antrages und Gewährung eines zu hohen Beitrages","hohe Komplexität der Regelungen",null,"Keine, es ist vollständig geregelt (1)","Ja, das Ergebnis des Entscheidungsprozesses ist an Subjekte außerhalb der Landesverwaltung gerichtet (5)","Nein, der Entscheidungsprozess betrifft ausschließlich die Landesverwaltung  (1)","Der Entscheidungsprozess bedingt die Gewährung von erheblichen Vergünstigungen bzw. Vorteilen an externe Subjekte (z.B. Erteilung von öffentlichen Aufträgen)  (5)","Nein  (1)","Ja, von einer anderen Person  (1)","Ja (1)","Nein (1)",16,2,"Bis ungefähr 20%    (1)","Nein (1)","Nein    (0)","Die Position eines einfachen Mitarbeiters   (1)",3,0.8,1.6,2,null,"Maßnahmen zur Verbesserung der Qualität der Datenbanken; Checklisten; verstärkte Überprüfung d; Einschulung und Begleitung neuer Mitarbeiter","Ergebnisse der von internen und externen Stellen durchgeführten Kontrollen","Amt","bereits abgelaufen","Ja","Ja","wirksam"]
["31.5. Amt für Landmaschinen","- D) Gewährung und Auszahlung von Subventionen, Beiträgen, Zuschüssen, Prämien und wirtschaftlichen Vergünstigungen jeglicher Art ",null,"Gewährung von zinsbegünstigten Darlehen für den Kauf von landwirtschaftlichen Maschinen","D Phase 2","Externe: landwirtschaftliche Unternehmen","Förderung der landwirtschaftlchen Primärproduktion","wirtschaftliche Unterstützung ","Antrag ","Gewährung","L.G. 11/1998","- Amtsdirektor",8564200,200,"missbräuchliche Bewertung hinsichtlich der Zulässigkeit des Antrages und Gewährung eines zu hohen Beitrages","hohe Komplexität der Regelungen",null,"Keine, es ist vollständig geregelt (1)","Ja, das Ergebnis des Entscheidungsprozesses ist an Subjekte außerhalb der Landesverwaltung gerichtet (5)","Nein, der Entscheidungsprozess betrifft ausschließlich die Landesverwaltung  (1)","Der Entscheidungsprozess bedingt die Gewährung von erheblichen Vergünstigungen bzw. Vorteilen an externe Subjekte (z.B. Erteilung von öffentlichen Aufträgen)  (5)","Nein  (1)","Ja, von einer anderen Person  (1)","Ja (1)","Nein (1)",16,2,"Bis ungefähr 20%    (1)","Nein (1)","Nein    (0)","Die Position eines einfachen Mitarbeiters   (1)",3,0.8,1.6,3,null,"Maßnahmen zur Verbesserung der Qualität der Datenbanken; Checklisten; verstärkte Überprüfung ; Einschulung und Begleitung neuer Mitarbeiter","Ergebnisse der von internen und externen Stellen durchgeführten Kontrollen","Amt ","bereits abgelaufen","Ja","Ja","wirksam"]
["31.5. Amt für Landmaschinen","- D) Gewährung und Auszahlung von Subventionen, Beiträgen, Zuschüssen, Prämien und wirtschaftlichen Vergünstigungen jeglicher Art ",null,"Zuweisung von verbilligtem landwirtschaftlichen Treibstoff","D Phase 2","Externe: landwirtschaftliche Unternehmen","Förderung der Landwirtschaft","wirtschaftliche Unterstützung ","Antrag ","Zuweisung","M.D. vom 14.12.2001, Nr. 454","- Amtsdirektor",null,13465,"missbräuchliche Bewertung hinsichtlich der Zulässigkeit des Antrages und zu hohe Treibstof-Zuteilung ","hohe Komplexität der Regelungen",null,"Keine, es ist vollständig geregelt (1)","Ja, das Ergebnis des Entscheidungsprozesses ist an Subjekte außerhalb der Landesverwaltung gerichtet (5)","Nein, der Entscheidungsprozess betrifft ausschließlich die Landesverwaltung  (1)","Der Entscheidungsprozess bedingt zwar die Gewährung von Vergünstigungen bzw. Vorteilen an externe Subjekte, aber diese Vorteile haben keine besondere wirtschaftliche Relevanz (z.B. Gewährung von Studienbeihilfen an Studenten)  (3)","Nein  (1)","Nein, die Kontrolle wird von derselben Person ausgeübt (4) ","Ja (1)","Nein (1)",17,2.1,"Von 20% bis ungefähr 60%    (3)","Nein (1)","Nein    (0)","Die Position eines einfachen Mitarbeiters   (1)",5,1.3,2.7300000000000004,1,null,"Maßnahmen zur Verbesserung der Qualität der Datenbanken; verstärkte Überprüfung d; Einschulung und Begleitung neuer Mitarbeiter; Schulungen und laufende Information der Mitarbeiter; ","Ergebnisse der von internen und externen Stellen durchgeführten Kontrollen","Amt ","bereits abgelaufen","Ja","Ja","wirksam"]
["31.5. Amt für Landmaschinen","- C) Ermächtigungen oder Konzessionen",null,"Immatrikulation von landwirtschaftlichen Maschinen und Führung des Landmaschinenregisters",null,"Externe: landwirtschaftliche Unternehmen","Zulassung von landwirtschaftlcihen Maschinen für den Straßenverkehr","Zulassung der landwirtschafltichen Maschinen zu erlangen ","Antrag ","Eintragung","L.D. vom 30.04.1992, Nr. 285, \n D.P.R. vom 16.12.1992, Nr. 495 ","- Zuständiger Bediensteter",null,4736,"mißbräuchliche Bewertung der Voraussetzungen,  um gewisse Subjekte zu bevorzugen","hohe Komplexität der Regelungen; Druck durch den Antragsteller",null,"Keine, es ist vollständig geregelt (1)","Ja, das Ergebnis des Entscheidungsprozesses ist an Subjekte außerhalb der Landesverwaltung gerichtet (5)","Nein, der Entscheidungsprozess betrifft ausschließlich die Landesverwaltung  (1)","Der Entscheidungsprozess bedingt zwar die Gewährung von Vergünstigungen bzw. Vorteilen an externe Subjekte, aber diese Vorteile haben keine besondere wirtschaftliche Relevanz (z.B. Gewährung von Studienbeihilfen an Studenten)  (3)","Nein  (1)","Nein, die Kontrolle wird von derselben Person ausgeübt (4) ","Ja (1)","Nein (1)",17,2.1,"Von 20% bis ungefähr 60%    (3)","Nein (1)","Nein    (0)","Die Position eines einfachen Mitarbeiters   (1)",5,1.3,2.7300000000000004,2,null,"laufende Abstimmung mit Kraftfahrzeugamt, laufende Information der Mitarbeiter, verstärkte Überprüfung ","Ergebniss der stichprobenartigen Überprüfung einzelner Anträge","Amt ","bereits abgelaufen","Ja","Nein","neutral"]
["31.5 Amt für Landmaschinen ","- Weiteres (angeben ob weitere riskante Tätigkeiten außer der oben genannten bestehen)","Führung des Landesverzeichnisses der landwirtschaftlichen Unternehmen","Eintragung landwirtschaftlicher Unternehmen  in das Landesverzeichnis, Änderungen",null,"Externe: landwirtschaftliche Unternehmen","Erfassung der der Stammdaten der landwirtschaftlichen Unternehmen zum Zwecke der einheitlichen Abwicklung der Beziehungen mit denselben ","Abwicklung der Beziehungen mit der Landesverwaltung und anderen Behörden","Antrag","Eintragung und von Amts wegen","D.L.H. vom 9.03.2007, Nr. 22","- Amtsdirektor",null,22000,"missbräuchliche Bewertung der Informationen zu den Stammdaten , die für die Eintragung in das Landesverzeichnis, bzw. für die Änderung der eingetragenen Daten, erforderlich sind ","Druck durch den Antragsteller, nicht korrekte Bewertung vorgelegter Unterlagen und nicht korrekte  Interpretation der Luftbilder ",null,"Das Verfahren ist teilweise von Gesetzen und/oder Verwaltungsakten geregelt (3) ","Ja, das Ergebnis des Entscheidungsprozesses ist an Subjekte außerhalb der Landesverwaltung gerichtet (5)","Nein, der Entscheidungsprozess betrifft ausschließlich die Landesverwaltung  (1)","Der Entscheidungsprozess bedingt die Gewährung von erheblichen Vergünstigungen bzw. Vorteilen an externe Subjekte (z.B. Erteilung von öffentlichen Aufträgen)  (5)","Nein  (1)","Von mehreren Personen, darunter auch jene Person, die für vorhergehende Phasen zuständig war (3)","Ja (1)","Nein (1)",20,2.5,"Von 20% bis ungefähr 60%    (3)","Nein (1)","Nein    (0)","Die Position eines einfachen Mitarbeiters   (1)",5,1.3,3.25,1,null,"interne Schulungen und Verfassen eines Handbuches, Stichprobenartige Kontrollen","Ergebniss der stichoprobenartigen Überpüfung gemäß geltender Bestimmungen, Anzahl der Beschwerde und Einwände an die Überprüfungsstelle ","Amt ","bereits abgelaufen","Ja","Ja","wirksam"]
["31.6 Amt für EU-Strukturfonds in der Landwirtschaft ","- L) Programmierung und Verwaltung der EU-Fonds",null,"Untermaßnahme 19.1 des ELR 2014-2020 ",null,"Externe: lokalen Aktionsgruppen Öffentlich: Bezirksgemeinschaften","Festlegung  der Leader-Territorien und Ausarbeitung der lokalen Aktionspläne","Erarbeitung  und Genehmigung der lokalen Aktionspläne ","Antrag","Gewährung","Entwicklungsprogramm für den ländlichen Raum-VO. (EU)\nNr. 1305/2013","- Amtsdirektor",42358.85,3,"missbräuchliche Bewertung der Zulässigkeit des Antrags zum Zwecke der Auszahlung eines zu hohen Beitrages ","Komplexität der  Bestimmungen betreffend die Festlegung der zulässigen Ausgaben; Einflussnahme seitens der Antragsteller; Notwendigkeit die von den Unionsbestimmungen vorgesehenen Fristen einzuhalten",null,"Keine, es ist vollständig geregelt (1)","Ja, das Ergebnis des Entscheidungsprozesses ist an Subjekte außerhalb der Landesverwaltung gerichtet (5)","Ja, der Entscheidungsprozess sieht die Beteiligung von mehr als 3 Verwaltungen vor  (3)","Der Entscheidungsprozess bedingt zwar die Gewährung von Vergünstigungen bzw. Vorteilen an externe Subjekte, aber diese Vorteile haben keine besondere wirtschaftliche Relevanz (z.B. Gewährung von Studienbeihilfen an Studenten)  (3)","Nein  (1)","Ja, von einer anderen Person  (1)","Ja (1)","Nein (1)",16,2,"Bis ungefähr 20%    (1)","Nein (1)","Nein    (0)","Die Position einer Führungskraft   (5) ",7,1.8,3.6,1,null,"Regelmäßige Durchführung von Weiterbildungsveranstaltugnen für die Bedienstete; Koordinierungssitzungen zwischen Verwaltugnsbehörde und Zahlstelle; Abfassung von Handbüchern der Verfahren; Festlegung und Umsetzung der Aktivitäten im Rahmen des Aktionsplanes, um die Fehlerquote zu reduzieren","positives/negatives Ergebnis der genannten Kontrollen; Fehlerquote unter 2 Prozent wie auf EU-Ebene vorgesehen ","Amt","bereits abgelaufen","Ja","Ja","wirksam"]
["31.6 Amt für EU-Strukturfonds in der Landwirtschaft ","- L) Programmierung und Verwaltung der EU-Fonds",null,"Untermaßnahme 19.2 des ELR 2014-2020 ",null,"Externe und öffentliche  : lokale Akteure","Förderung für die Druchführung der Vorhaben im Rahmen der von der örtlichen Bevölkerung betriebenen Strategie für lokale Entwicklung ","wirtschaftliche Unterstützung in der Projektumsetzung ","Antrag ","Gewährung","Entwicklungsprogramm für den ländlichen Raum-VO. (EU)\nNr. 1305/2013","- Amtsdirektor",0,0,"missbräuchliche Bewertung der Zulässigkeit des Antrags zum Zwecke der Auszahlung eines zu hohen Beitrages ","Komplexität der  Bestimmungen betreffend die Festlegung der zulässigen Ausgaben; Einflussnahme seitens der Antragsteller; Notwendigkeit die von den Unionsbestimmungen vorgesehenen Fristen einzuhalten",null,"Keine, es ist vollständig geregelt (1)","Ja, das Ergebnis des Entscheidungsprozesses ist an Subjekte außerhalb der Landesverwaltung gerichtet (5)","Ja, der Entscheidungsprozess sieht die Beteiligung von mehr als 3 Verwaltungen vor  (3)","Der Entscheidungsprozess bedingt zwar die Gewährung von Vergünstigungen bzw. Vorteilen an externe Subjekte, aber diese Vorteile haben keine besondere wirtschaftliche Relevanz (z.B. Gewährung von Studienbeihilfen an Studenten)  (3)","Nein  (1)","Ja, von einer anderen Person  (1)","Ja (1)","Nein (1)",16,2,"Bis ungefähr 20%    (1)","Nein (1)","Nein    (0)","Die Position einer Führungskraft   (5) ",7,1.8,3.6,3,null,"Regelmäßige Durchführung von Weiterbildungsveranstaltugnen für die Bedienstete; Koordinierungssitzungen zwischen Verwaltugnsbehörde und Zahlstelle; Abfassung von Handbüchern der Verfahren; Festlegung und Umsetzung der Aktivitäten im Rahmen des Aktionsplanes, um die Fehlerquote zu reduzieren","positives/negatives Ergebnis der genannten Kontrollen; Fehlerquote unter 2 Prozent wie auf EU-Ebene vorgesehen ","Amt ","bereits abgelaufen","Ja","Ja","neutral"]
["31.6 Amt für EU-Strukturfonds in der Landwirtschaft ","- L) Programmierung und Verwaltung der EU-Fonds",null,"Untermaßnahme 4.2 des ELR 2014-2020 ",null,"Externe: landwirtschafltiche Genossenschaften","Förderung der Investitionen in materielle Vermögenswerte bei  Verarbeitung, Vermarktung und Entwicklung  von landwirtschahftlichen Erzeugnissen ","wirtschaftliche Unterstützung","Antrag","Gewährung","Entwicklungsprogramm für den ländlichen Raum-VO. (EU)\nNr. 1305/2013","- Amtsdirektor",3066186,4,"missbräuchliche Bewertung der Zulässigkeit des Antrags zum Zwecke der Auszahlung eines zu hohen Beitrages ","Komplexität der  Bestimmungen betreffend die Festlegung der zulässigen Ausgaben; Einflussnahme seitens der Antragsteller; Notwendigkeit die von den Unionsbestimmungen vorgesehenen Fristen einzuhalten",null,"Keine, es ist vollständig geregelt (1)","Ja, das Ergebnis des Entscheidungsprozesses ist an Subjekte außerhalb der Landesverwaltung gerichtet (5)","Nein, der Entscheidungsprozess betrifft ausschließlich die Landesverwaltung  (1)","Der Entscheidungsprozess bedingt die Gewährung von erheblichen Vergünstigungen bzw. Vorteilen an externe Subjekte (z.B. Erteilung von öffentlichen Aufträgen)  (5)","Nein  (1)","Ja, von einer anderen Person  (1)","Ja (1)","Nein (1)",16,2,"Bis ungefähr 20%    (1)","Nein (1)","Nein    (0)","Die Position einer Führungskraft   (5) ",7,1.8,3.6,4,null,"Regelmäßige Durchführung von Weiterbildungsveranstaltugnen für die Bedienstete; Koordinierungssitzungen zwischen Verwaltugnsbehörde und Zahlstelle; Abfassung von Handbüchern der Verfahren; Festlegung und Umsetzung der Aktivitäten im Rahmen des Aktionsplanes, um die Fehlerquote zu reduzieren","positives/negatives Ergebnis der genannten Kontrollen; Fehlerquote unter 2 Prozent wie auf EU-Ebene vorgesehen ","Amt ","bereits abgelaufen","Ja","Ja","wirksam"]
["31.6 Amt für EU-Strukturfonds in der Landwirtschaft ","- L) Programmierung und Verwaltung der EU-Fonds",null,"Untermaßnahme 7.3 des ELR 2014-2020 ",null,"Öffentliche : Gemeinden ","Unterstützung in die Breitbandinfrastruktur","Installierung, Verbesserung und Ausdehnung der Breitbandinfrastruktur","Antrag","Gewährung","Entwicklungsprogramm für den ländlichen Raum-VO. (EU)\nNr. 1305/2013","- Amtsdirektor",{"$f":"308800+425000","v":733800},2,"missbräuchliche Bewertung der Zulässigkeit des Antrags zum Zwecke der Auszahlung eines zu hohen Beitrages ","Komplexität der  Bestimmungen betreffend die Festlegung der zulässigen Ausgaben; Einflussnahme seitens der Antragsteller; Notwendigkeit die von den Unionsbestimmungen vorgesehenen Fristen einzuhalten",null,"Keine, es ist vollständig geregelt (1)","Ja, das Ergebnis des Entscheidungsprozesses ist an Subjekte außerhalb der Landesverwaltung gerichtet (5)","Ja, der Entscheidungsprozess sieht die Beteiligung von mehr als 3 Verwaltungen vor  (3)","Der Entscheidungsprozess bedingt die Gewährung von erheblichen Vergünstigungen bzw. Vorteilen an externe Subjekte (z.B. Erteilung von öffentlichen Aufträgen)  (5)","Nein  (1)","Ja, von einer anderen Person  (1)","Ja (1)","Nein (1)",18,2.2999999999999998,"Bis ungefähr 20%    (1)","Nein (1)","Nein    (0)","Die Position einer Führungskraft   (5) ",7,1.8,4.1399999999999997,2,null,"Regelmäßige Durchführung von Weiterbildungsveranstaltugnen für die Bedienstete; Koordinierungssitzungen zwischen Verwaltugnsbehörde und Zahlstelle; Abfassung von Handbüchern der Verfahren; Festlegung und Umsetzung der Aktivitäten im Rahmen des Aktionsplanes, um die Fehlerquote zu reduzieren","positives/negatives Ergebnis der genannten Kontrollen; Fehlerquote unter 2 Prozent wie auf EU-Ebene vorgesehen ","Amt ","bereits abgelaufen","Ja","Ja","wirksam"]
["31.6 Amt für EU-Strukturfonds in der Landwirtschaft ","- L) Programmierung und Verwaltung der EU-Fonds",null,"Untermaßnahme 10.1 des ELR 2014-2020 ",null,"Externe : landwritschaftliche Unternehmen,","Unterstützung der Anwendung von extensiven, umweltverträglichen landwirtschaftlichen Praktiken, die das Ökosystem bewahren","wirtschaftliche Unterstützung","Antrag","Gewährung","Entwicklungsprogramm für den ländlichen Raum-VO. (EU)\nNr. 1305/2013","- Amtsdirektor",32253519.93,20720,"missbräuchliche Bewertung der Voraussetzungen für die Zulässigkeit des Antrags bzw. der zwecks Beitragsgewährung vorgesehenen Kriterien ","Komplexität der  Bestimmungen betreffend die Festlegung der zulässigen Ausgaben; Einflussnahme seitens der Antragsteller; Notwendigkeit die von den Unionsbestimmungen vorgesehenen Fristen einzuhalten",null,"Keine, es ist vollständig geregelt (1)","Ja, das Ergebnis des Entscheidungsprozesses ist an Subjekte außerhalb der Landesverwaltung gerichtet (5)","Ja, der Entscheidungsprozess sieht die Beteiligung von mehr als 3 Verwaltungen vor  (3)","Der Entscheidungsprozess bedingt zwar die Gewährung von Vergünstigungen bzw. Vorteilen an externe Subjekte, aber diese Vorteile haben keine besondere wirtschaftliche Relevanz (z.B. Gewährung von Studienbeihilfen an Studenten)  (3)","Nein  (1)","Ja, von einer anderen Person  (1)","Ja (1)","Nein (1)",16,2,"Von 20% bis ungefähr 60%    (3)","Nein (1)","Nein    (0)","Die Position einer Führungskraft   (5) ",9,2.2999999999999998,4.5999999999999996,2,null,"Regelmäßige Durchführung von Weiterbildungsveranstaltugnen für die Bedienstete; Koordinierungssitzungen zwischen Verwaltugnsbehörde und Zahlstelle; Abfassung von Handbüchern der Verfahren; Festlegung und Umsetzung der Aktivitäten im Rahmen des Aktionsplanes, um die Fehlerquote zu reduzieren","positives/negatives Ergebnis der genannten Kontrollen; Fehlerquote unter 2 Prozent wie auf EU-Ebene vorgesehen ","Amt ","bereits abgelaufen","Ja","Ja","wirksam"]
["31.6 Amt für EU-Strukturfonds in der Landwirtschaft ","- L) Programmierung und Verwaltung der EU-Fonds",null,"Untermaßnahme 13.1 des ELR 2014-2020",null,"Externe : landwirtschafltiche Unternehmen","Ausgleich der naturbedingten Nachteile der Berggebiete und Beibehaltung einer extensiven und umweltschonenden Landwirtscahft im Bergegebiet","Ausgleichszahlungen","Antrag","Gewährung","Entwicklungsprogramm für den ländlichen Raum-VO. (EU)\nNr. 1305/2013","- Amtsdirektor",21960014.010000002,16031,"missbräuchliche Bewertung der Voraussetzungen für die Zulässigkeit des Antrags bzw. der zwecks Beitragsgewährung vorgesehenen Kriterien ","Komplexität der  Bestimmungen betreffend die Festlegung der zulässigen Ausgaben; Einflussnahme seitens der Antragsteller; Notwendigkeit die von den Unionsbestimmungen vorgesehenen Fristen einzuhalten",null,"Keine, es ist vollständig geregelt (1)","Ja, das Ergebnis des Entscheidungsprozesses ist an Subjekte außerhalb der Landesverwaltung gerichtet (5)","Ja, der Entscheidungsprozess sieht die Beteiligung von mehr als 3 Verwaltungen vor  (3)","Der Entscheidungsprozess bedingt zwar die Gewährung von Vergünstigungen bzw. Vorteilen an externe Subjekte, aber diese Vorteile haben keine besondere wirtschaftliche Relevanz (z.B. Gewährung von Studienbeihilfen an Studenten)  (3)","Nein  (1)","Ja, von einer anderen Person  (1)","Ja (1)","Nein (1)",16,2,"Von 20% bis ungefähr 60%    (3)","Nein (1)","Nein    (0)","Die Position einer Führungskraft   (5) ",9,2.2999999999999998,4.5999999999999996,1,null,"Regelmäßige Durchführung von Weiterbildungsveranstaltugnen für die Bedienstete; Koordinierungssitzungen zwischen Verwaltugnsbehörde und Zahlstelle; Abfassung von Handbüchern der Verfahren; Festlegung und Umsetzung der Aktivitäten im Rahmen des Aktionsplanes, um die Fehlerquote zu reduzieren","positives/negatives Ergebnis der genannten Kontrollen; Fehlerquote unter 2 Prozent wie auf EU-Ebene vorgesehen ","Amt ","bereits abgelaufen","Ja","Ja","wirksam"]
["31.6 Amt für EU-Strukturfonds in der Landwirtschaft ","- L) Programmierung und Verwaltung der EU-Fonds",null,"Untermaßnahme 16.1 des ELR 2014-2020 ",null,"Externe : Privatunternehmen, Erzeugergruppierungen, Branchenorganisationen Offentliche: öffentliche Körperscahften, die auf dem Gebiet der Förschung tätig sind","Aurechterhaltung der Beschäftigungszahlen und der Lebenqualität in den ländlichen Gebieten, Steigerung der Wettbewerbsfähigkeit","wirtschaftliche Unterstützung","Antrag","Gewährung","Entwicklungsprogramm für den ländlichen Raum-VO. (EU)\nNr. 1305/2013","- Amtsdirektor",0,0,"missbräuchliche Bewertung hinsichtlich der Zulässigkeit des Antrages und Gewährung eines zu hohen Beitrages","Komplexität der  Bestimmungen betreffend die Festlegung der zulässigen Ausgaben; Einflussnahme seitens der Antragsteller; Notwendigkeit die von den Unionsbestimmungen vorgesehenen Fristen einzuhalten",null,"Keine, es ist vollständig geregelt (1)","Ja, das Ergebnis des Entscheidungsprozesses ist an Subjekte außerhalb der Landesverwaltung gerichtet (5)","Ja, der Entscheidungsprozess sieht die Beteiligung von mehr als 3 Verwaltungen vor  (3)","Der Entscheidungsprozess bedingt zwar die Gewährung von Vergünstigungen bzw. Vorteilen an externe Subjekte, aber diese Vorteile haben keine besondere wirtschaftliche Relevanz (z.B. Gewährung von Studienbeihilfen an Studenten)  (3)","Nein  (1)","Ja, von einer anderen Person  (1)","Ja (1)","Nein (1)",16,2,"Bis ungefähr 20%    (1)","Nein (1)","Nein    (0)","Die Position einer Führungskraft   (5) ",7,1.8,3.6,5,null,"Regelmäßige Durchführung von Weiterbildungsveranstaltugnen für die Bedienstete; Koordinierungssitzungen zwischen Verwaltugnsbehörde und Zahlstelle; Abfassung von Handbüchern der Verfahren; Festlegung und Umsetzung der Aktivitäten im Rahmen des Aktionsplanes, um die Fehlerquote zu reduzieren","positives/negatives Ergebnis der genannten Kontrollen; Fehlerquote unter 2 Prozent wie auf EU-Ebene vorgesehen ","Amt ","bereits abgelaufen","Ja","Ja","wirksam"]
["31.6 Amt für EU-Strukturfonds in der Landwirtschaft ","- L) Programmierung und Verwaltung der EU-Fonds",null,"Untermaßnahme 19.3 des ELR 2014-2020",null,"Externe: ausgewählte lokale Aktionsgruppen","Förderung der laufenden Kosten und Aktivierungskosten","wirtschaftliche Unterstüzung in der Projektumsetzung ","Antrag","Gewährung","Entwicklungsprogramm für den ländlichen Raum-VO. (EU)\nNr. 1305/2013","- Amtsdirektor",0,0,"missbräuchliche Bewertung hinsichtlich der Zulässigkeit des Antrages und Gewährung eines zu hohen Beitrages","Komplexität der  Bestimmungen betreffend die Festlegung der zulässigen Ausgaben; Einflussnahme seitens der Antragsteller; Notwendigkeit die von den Unionsbestimmungen vorgesehenen Fristen einzuhalten",null,"Das Verfahren ist teilweise von Gesetzen und/oder Verwaltungsakten geregelt (3) ","Ja, das Ergebnis des Entscheidungsprozesses ist an Subjekte außerhalb der Landesverwaltung gerichtet (5)","Ja, der Entscheidungsprozess sieht die Beteiligung von mehr als 3 Verwaltungen vor  (3)","Der Entscheidungsprozess bedingt zwar die Gewährung von Vergünstigungen bzw. Vorteilen an externe Subjekte, aber diese Vorteile haben keine besondere wirtschaftliche Relevanz (z.B. Gewährung von Studienbeihilfen an Studenten)  (3)","Nein  (1)","Ja, von einer anderen Person  (1)","Ja (1)","Nein (1)",18,2.2999999999999998,"Bis ungefähr 20%    (1)","Nein (1)","Nein    (0)","Die Position einer Führungskraft   (5) ",7,1.8,4.1399999999999997,3,null,"Regelmäßige Durchführung von Weiterbildungsveranstaltugnen für die Bedienstete; Koordinierungssitzungen zwischen Verwaltugnsbehörde und Zahlstelle; Abfassung von Handbüchern der Verfahren; Festlegung und Umsetzung der Aktivitäten im Rahmen des Aktionsplanes, um die Fehlerquote zu reduzieren","positives/negatives Ergebnis der genannten Kontrollen; Fehlerquote unter 2 Prozent wie auf EU-Ebene vorgesehen ","Amt ","bereits abgelaufen","Ja","Ja","neutral"]
["31.6 Amt für EU-Strukturfonds in der Landwirtschaft ","- L) Programmierung und Verwaltung der EU-Fonds",null,"Untermaßnahme 19.4 des ELR 2014-2020",null,"Externe : ausgewählte lokale Aktionsgruppen","Aurechterhaltung der Beschäftigungszahlen und der Lebenqualität in den ländlichen Gebieten, Steigerung der Wettbewerbsfähigkeit","wirtschafltiche Unterstützung","Antrag","Gewährung","Entwicklungsprogramm für den ländlichen Raum-VO. (EU)\nNr. 1305/2013","- Amtsdirektor",0,0,"missbräuchliche Bewertung der Zulässigkeit des Antrags zum Zwecke der Auszahlung eines zu hohen Beitrages ","Komplexität der  Bestimmungen betreffend die Festlegung der zulässigen Ausgaben; Einflussnahme seitens der Antragsteller; Notwendigkeit die von den Unionsbestimmungen vorgesehenen Fristen einzuhalten",null,"Keine, es ist vollständig geregelt (1)","Ja, das Ergebnis des Entscheidungsprozesses ist an Subjekte außerhalb der Landesverwaltung gerichtet (5)","Ja, der Entscheidungsprozess sieht die Beteiligung von mehr als 3 Verwaltungen vor  (3)","Der Entscheidungsprozess bedingt zwar die Gewährung von Vergünstigungen bzw. Vorteilen an externe Subjekte, aber diese Vorteile haben keine besondere wirtschaftliche Relevanz (z.B. Gewährung von Studienbeihilfen an Studenten)  (3)","Nein  (1)","Ja, von einer anderen Person  (1)","Ja (1)","Nein (1)",16,2,"Bis ungefähr 20%    (1)","Nein (1)","Nein    (0)","Die Position einer Führungskraft   (5) ",7,1.8,3.6,2,null,"Regelmäßige Durchführung von Weiterbildungsveranstaltugnen für die Bedienstete; Koordinierungssitzungen zwischen Verwaltugnsbehörde und Zahlstelle; Abfassung von Handbüchern der Verfahren; Festlegung und Umsetzung der Aktivitäten im Rahmen des Aktionsplanes, um die Fehlerquote zu reduzieren","positives/negatives Ergebnis der genannten Kontrollen; Fehlerquote unter 2 Prozent wie auf EU-Ebene vorgesehen ","Amt ","bereits abgelaufen","Ja","Ja","neutral"]
["31.6 Amt für EU-Strukturfonds in der Landwirtschaft ","- L) Programmierung und Verwaltung der EU-Fonds",null,"Untermaßnahme 20 des ELR 2014-2020",null,"Öffentliche : Landesverwaltung","Unterstützung in der Umsetzung der Programmierungsfase des ELR 2014-2020","keines","Antrag","Gewährung","Entwicklungsprogramm für den ländlichen Raum-VO. (EU)\nNr. 1305/2013","- Amtsdirektor",0,0,"missbräuchliche Bewertung der Zulässigkeit des Antrags zum Zwecke der Auszahlung eines zu hohen Beitrages ","Komplexität der  Bestimmungen betreffend die Festlegung der zulässigen Ausgaben; Einflussnahme seitens der Antragsteller; Notwendigkeit die von den Unionsbestimmungen vorgesehenen Fristen einzuhalten",null,"Keine, es ist vollständig geregelt (1)","Ja, das Ergebnis des Entscheidungsprozesses ist an Subjekte außerhalb der Landesverwaltung gerichtet (5)","Ja, der Entscheidungsprozess sieht die Beteiligung von mehr als 3 Verwaltungen vor  (3)","Der Entscheidungsprozess hat ausschließlich interne Bedeutung  (1)","Nein  (1)","Ja, von einer anderen Person  (1)","Ja (1)","Nein (1)",14,1.8,"Bis ungefähr 20%    (1)","Nein (1)","Nein    (0)","Die Position einer Führungskraft   (5) ",7,1.8,3.24,3,null,"Regelmäßige Durchführung von Weiterbildungsveranstaltugnen für die Bedienstete; Koordinierungssitzungen zwischen Verwaltugnsbehörde und Zahlstelle; Abfassung von Handbüchern der Verfahren; Festlegung und Umsetzung der Aktivitäten im Rahmen des Aktionsplanes, um die Fehlerquote zu reduzieren","positives/negatives Ergebnis der genannten Kontrollen; Fehlerquote unter 2 Prozent wie auf EU-Ebene vorgesehen ","Amt ","bereits abgelaufen","Nein","Nein","neutral"]
["31.7. Amt für Landwirtschaftsdienste","- D) Gewährung und Auszahlung von Subventionen, Beiträgen, Zuschüssen, Prämien und wirtschaftlichen Vergünstigungen jeglicher Art ",null,"Gewährung von Beihilfen für Wiederherstellungarbeiten und Ausgleichszahlungen aufgrund von Unwetterschäden","D Phase 2","Externe: landwirtschaftliche Unternehmen ","Wiederherstellung  von Unwetterschäden","wirtschaftliche Unterstützung","Antrag","Gewährung des Beitrags","L.G.11/98","- Amtsdirektor",439985,62,"missbräuchliche Bewertung hinsichtlich der Zulässigkeit des Antrages und Gewährung eines zu hohen Beitrages","Komplexität der anzuwendenden Bestimmungen ",null,"Das Verfahren ist teilweise von Gesetzen und/oder Verwaltungsakten geregelt (3) ","Ja, das Ergebnis des Entscheidungsprozesses ist an Subjekte außerhalb der Landesverwaltung gerichtet (5)","Nein, der Entscheidungsprozess betrifft ausschließlich die Landesverwaltung  (1)","Der Entscheidungsprozess bedingt die Gewährung von erheblichen Vergünstigungen bzw. Vorteilen an externe Subjekte (z.B. Erteilung von öffentlichen Aufträgen)  (5)","Nein  (1)","Ja, von einer anderen Person  (1)","Ja (1)","Nein (1)",18,2.2999999999999998,"Bis ungefähr 20%    (1)","Nein (1)","Nein    (0)","Die Position eines einfachen Mitarbeiters   (1)",3,0.8,1.8399999999999999,1,null,"interne Schulungen und schrifliche interne Anleitungen ","Ergebnisse der stichprobenartigen Überprüfung der bearbeiteten Anträge ","Amt ","bereits abgelaufen","Ja","Ja","wirksam"]
["31.7. Amt für Landwirtschaftsdienste","- D) Gewährung und Auszahlung von Subventionen, Beiträgen, Zuschüssen, Prämien und wirtschaftlichen Vergünstigungen jeglicher Art ",null,"Gewährung von Beihilfen an Organisationen für Beratungstätigkeit, Wissenstransfer und Informationsmaßnahmen für landwirtschaftliche Betriebe","D Phase 2","Externe : Organisationen, die Beratungsdienste, Wissenstransfer und Informationsmaßnahmen im Bereich Landwirtschaft anbieten ","Beratung und Wissenstransfer zugunsten von landwirtschaftlichen Unternehmen","wirtschaftliche Unterstützung","Antrag","Gewährung des Beitrags","L.G. 11/98","- Amtsdirektor",3625970,24,"missbräuchliche Bewertung hinsichtlich der Zulässigkeit des Antrages und Gewährung eines zu hohen Beitrages","Komplexität der anzuwendenden Bestimmungen ",null,"Das Verfahren ist teilweise von Gesetzen und/oder Verwaltungsakten geregelt (3) ","Ja, das Ergebnis des Entscheidungsprozesses ist an Subjekte außerhalb der Landesverwaltung gerichtet (5)","Nein, der Entscheidungsprozess betrifft ausschließlich die Landesverwaltung  (1)","Der Entscheidungsprozess bedingt die Gewährung von erheblichen Vergünstigungen bzw. Vorteilen an externe Subjekte (z.B. Erteilung von öffentlichen Aufträgen)  (5)","Nein  (1)","Ja, von einer anderen Person  (1)","Zum Teil (3)","Nein (1)",20,2.5,"Bis ungefähr 20%    (1)","Nein (1)","Nein    (0)","Die Position einer Führungskraft   (5) ",7,1.8,4.5,2,null,"interne Schulungen und schrifliche interne Anleitungen ","Ergebnisse der stichprobenartigen Überprüfung der bearbeiteten Anträge ","Amt ","bereits abgelaufen","Ja","Ja","neutral"]
["31.7. Amt für Landwirtschaftsdienste","- L) Programmierung und Verwaltung der EU-Fonds",null,"Maßnahme 11 des ELR 2014-2020 ",null,"Externe : landwirtschafltiche Unternehmen","Förderung der ökologisch/biologischen Landwirtschaft","wirtschaftliche Unterstützung","Antrag","Gewährung des Beitrags","Entwicklungsprogramm für den ländlichen Raum-VO. (EU)\nNr. 1305/2013","- Amtsdirektor",2811960,818,"missbräuchliche Bewertung der Voraussetzungen für die Zulässigkeit des Antrags bzw. der zwecks Beitragsgewährung vorgesehenen Kriterien ","Komplexität der anzuwendenden Bestimmungen ",null,"Keine, es ist vollständig geregelt (1)","Ja, das Ergebnis des Entscheidungsprozesses ist an Subjekte außerhalb der Landesverwaltung gerichtet (5)","Ja, der Entscheidungsprozess sieht die Beteiligung von mehr als 3 Verwaltungen vor  (3)","Der Entscheidungsprozess bedingt zwar die Gewährung von Vergünstigungen bzw. Vorteilen an externe Subjekte, aber diese Vorteile haben keine besondere wirtschaftliche Relevanz (z.B. Gewährung von Studienbeihilfen an Studenten)  (3)","Nein  (1)","Ja, von einer anderen Person  (1)","Ja (1)","Nein (1)",16,2,"Bis ungefähr 20%    (1)","Nein (1)","Nein    (0)","Die Position eines einfachen Mitarbeiters   (1)",3,0.8,1.6,7,null,"Regelmäßige Durchführung von Weiterbildungsveranstaltugnen für die Bedienstete; Koordinierungssitzungen zwischen Verwaltugnsbehörde und Zahlstelle; Abfassung von Handbüchern der Verfahren; Festlegung und Umsetzung der Aktivitäten im Rahmen des Aktionsplanes, um die Fehlerquote zu reduzieren","positives/negatives Ergebnis der genannten Kontrollen; Fehlerquote unter 2 Prozent wie auf EU-Ebene vorgesehen ","Amt ","bereits abgelaufen","Ja","Ja","wirksam"]
["31.12. Landestierärztlicher Dienst","- D) Gewährung und Auszahlung von Subventionen, Beiträgen, Zuschüssen, Prämien und wirtschaftlichen Vergünstigungen jeglicher Art ",null,"Gewährung von Beihilfen für die Tierkennzeichnung und die Führung des Landesviehregisters","D Phase 2","Externe: Südtiroler Tierzuchtvereine","öffentliche Gesundheit, Schutz  des Tierbestandes, Schutz des Marktes ","Deckung der Kosten für die Erfüllung gesetzlicher Verpflichtungen","Antrag","Gewährung des Beitrags","LG 9/1995\nLG 10/1999\n\n","- Amtsdirektor",1190000,1,"unterlassene oder nicht den Bestimmungen entsprechende Kontrolle der zur Rechnungslegung vorgelegten Unterlagen","Druck durch den Antragsteller/Wissenslücken des Personals",null,"Das Verfahren ist teilweise von Gesetzen und/oder Verwaltungsakten geregelt (3) ","Ja, das Ergebnis des Entscheidungsprozesses ist an Subjekte außerhalb der Landesverwaltung gerichtet (5)","Nein, der Entscheidungsprozess betrifft ausschließlich die Landesverwaltung  (1)","Der Entscheidungsprozess bedingt die Gewährung von erheblichen Vergünstigungen bzw. Vorteilen an externe Subjekte (z.B. Erteilung von öffentlichen Aufträgen)  (5)","Nein  (1)","Ja, von einer anderen Person  (1)","Ja (1)","Nein (1)",18,2.2999999999999998,"Bis ungefähr 20%    (1)","Nein (1)","Wir haben diesbezüglich keine Kenntnis    (1)","Die Position eines einfachen Mitarbeiters   (1)",4,1,2.2999999999999998,1,null,"nur  die Komunikation in telematischer Form begünstigen, um dadurch Transparenz zu gewährleisten und mögliche Einmischung zu vermeiden/die Teilnahme der Mitarbeiter an Schulungen fördern","Ergebnisse der Kontrollen der übergeordneten Strukturen: Rechnungshof, Amt für Ausgaben usw.","Amt","bereits abgelaufen","Ja","Ja","wirksam"]
["31.12. Landestierärztlicher Dienst","- D) Gewährung und Auszahlung von Subventionen, Beiträgen, Zuschüssen, Prämien und wirtschaftlichen Vergünstigungen jeglicher Art ",null,"Gewährung von Beihilfen  für die Organisation und Durchführung des Dienstes der Tierkadaverentsorgung.","D Phase 2","Externe: Südtiroler Tierzüchter","öffentliche Gesundheit, effizienter und flächendeckender Dienst ","Deckung der Kosten für die Erfüllung gesetzlicher Verpflichtungen","Antrag","Gewährung des Beitrags","LG 9/1995\nLG 10/1999\n\n","- Amtsdirektor",857000,1,"unterlassene oder nicht den Bestimmungen entsprechende Kontrolle der zur Rechnungslegung vorgelegten Unterlagen","Druck durch den Antragsteller/Wissenslücken des Personals",null,"Das Verfahren ist teilweise von Gesetzen und/oder Verwaltungsakten geregelt (3) ","Ja, das Ergebnis des Entscheidungsprozesses ist an Subjekte außerhalb der Landesverwaltung gerichtet (5)","Nein, der Entscheidungsprozess betrifft ausschließlich die Landesverwaltung  (1)","Der Entscheidungsprozess bedingt die Gewährung von erheblichen Vergünstigungen bzw. Vorteilen an externe Subjekte (z.B. Erteilung von öffentlichen Aufträgen)  (5)","Nein  (1)","Ja, von einer anderen Person  (1)","Ja (1)","Nein (1)",18,2.2999999999999998,"Bis ungefähr 20%    (1)","Nein (1)","Wir haben diesbezüglich keine Kenntnis    (1)","Die Position eines einfachen Mitarbeiters   (1)",4,1,2.2999999999999998,2,null,"nur  die Komunikation in telematischer Form begünstigen, um dadurch Transparenz zu gewährleisten und mögliche Einmischung zu vermeiden/die Teilnahme der Mitarbeiter an Schulungen fördern","Ergebnisse der Kontrollen der übergeordneten Strukturen","Amt","bereits abgelaufen","Ja","Ja","wirksam"]
["31.12. Landestierärztlicher Dienst","- D) Gewährung und Auszahlung von Subventionen, Beiträgen, Zuschüssen, Prämien und wirtschaftlichen Vergünstigungen jeglicher Art ",null,"Gewährung von Beiträgen für die Förderung der Tierschutzvereinigungen","D Phase 3","Externe : Tierschutzvereine ","Tierwohl","wirtschafltiche Unterstützung für die Vereinstätigkeiten","Antrag","Gewährung des Beitrags","LG 9/2000\n","- Amtsdirektor",3000000,12,"missbräuchliche Bewertung der Zulässigkeit des Antrages  oder der Kriterien für die Gewährung bzw. die Festlegung der Höhe des Beitrages","Druck durch den Antragsteller/Zweifel bei der Bewertung der Unterlagen",null,"Das Verfahren ist teilweise von Gesetzen und/oder Verwaltungsakten geregelt (3) ","Ja, das Ergebnis des Entscheidungsprozesses ist an Subjekte außerhalb der Landesverwaltung gerichtet (5)","Nein, der Entscheidungsprozess betrifft ausschließlich die Landesverwaltung  (1)","Der Entscheidungsprozess bedingt zwar die Gewährung von Vergünstigungen bzw. Vorteilen an externe Subjekte, aber diese Vorteile haben keine besondere wirtschaftliche Relevanz (z.B. Gewährung von Studienbeihilfen an Studenten)  (3)","Nein  (1)","Ja, von einer anderen Person  (1)","Ja (1)","Nein (1)",16,2,"Bis ungefähr 20%    (1)","Nein (1)","Wir haben diesbezüglich keine Kenntnis    (1)","Die Position eines einfachen Mitarbeiters   (1)",4,1,2,4,null,"überprüfen, dass die Kriterien hinreichend genau sind, um den Ermessensspielraum einzuschränken/die Kommunikation über amtliche Kanäle bevorzugen um unzulässigen Eingriffenn vorzubeugen/die Teilnahme der Mitarbeiter an Schulungen fördern","Ergebnisse der Kontrollen der übergeordneten Strukturen und eventueller Einsprüche","Amt","bereits abgelaufen","Ja","Ja","wirksam"]
["31.12. Landestierärztlicher Dienst","- D) Gewährung und Auszahlung von Subventionen, Beiträgen, Zuschüssen, Prämien und wirtschaftlichen Vergünstigungen jeglicher Art ",null,"Entschädigungen für die Schlachtung von Tieren im Rahmen der Bestimmungen über die Prophylaxe","D Phase 1","Externe: Südtiroler Tierzüchter","öffentliche Gesundheit, Schutz  des Tierbestandes, Schutz des Marktes ","wirtschaftliche Entschädigung für Ereignisse, die den eigenen Tierbestand  schädigen","Antrag","Anerkennung der Entschädigung","LG 3/1983","- Amtsdirektor",54862,390,"missbräuchliche Bewertung der Zulässigkeit des Antrages  oder der Kriterien für die Gewährung bzw. die Festlegung der Höhe des Beitrages","Druck durch den Antragsteller",null,"Keine, es ist vollständig geregelt (1)","Ja, das Ergebnis des Entscheidungsprozesses ist an Subjekte außerhalb der Landesverwaltung gerichtet (5)","Nein, der Entscheidungsprozess betrifft ausschließlich die Landesverwaltung  (1)","Der Entscheidungsprozess bedingt zwar die Gewährung von Vergünstigungen bzw. Vorteilen an externe Subjekte, aber diese Vorteile haben keine besondere wirtschaftliche Relevanz (z.B. Gewährung von Studienbeihilfen an Studenten)  (3)","Nein  (1)","Ja, von einer anderen Person  (1)","Ja (1)","Nein (1)",14,1.8,"Bis ungefähr 20%    (1)","Nein (1)","Nein    (0)","Die Position eines einfachen Mitarbeiters   (1)",3,0.8,1.4400000000000002,7,null,"überprüfen der Angemessenheit der Bestimmungen im Bereich mit dem Ziel, den Ermessensspielraum zu reduzieren","Ergebnisse der Kontrollen der übergeordneten Strukturen","Amt","bereits abgelaufen","Ja","Ja","wirksam"]
["31.12. Landestierärztlicher Dienst","- B) Öffentliche Verträge",null,"Ankauf in Regie von Waren und Leistungen, welche für die institutionelle Tätigkeit benötigt werden.","B Phase 8","Externe: Wirtschaftsteilnehmer ","Abwicklung istitutioneller Tätigkeiten","Wirtschaftsinteressen","nötigenfalls","Lieferung der Güter oder der Dienstleistung","LG 3/1983\nLG 16/2015","- Amtsdirektor",201691.78,8,"Missbrauch der Direktvergabe  außerhalb der vom Gesetz vorgesehenen Fälle","Druck durch den Verfahrensverantwortlichen, um den Prozess zu beschleunigen und inhärente Verfahrensverzögerung zu vermeiden",null,"Keine, es ist vollständig geregelt (1)","Ja, das Ergebnis des Entscheidungsprozesses ist an Subjekte außerhalb der Landesverwaltung gerichtet (5)","Nein, der Entscheidungsprozess betrifft ausschließlich die Landesverwaltung  (1)","Der Entscheidungsprozess bedingt zwar die Gewährung von Vergünstigungen bzw. Vorteilen an externe Subjekte, aber diese Vorteile haben keine besondere wirtschaftliche Relevanz (z.B. Gewährung von Studienbeihilfen an Studenten)  (3)","Nein  (1)","Ja, von einer anderen Person  (1)","Ja (1)","Nein (1)",14,1.8,"Von 20% bis ungefähr 60%    (3)","Nein (1)","Wir haben diesbezüglich keine Kenntnis    (1)","Die Position einer Führungskraft   (5) ",10,2.5,4.5,null,null,"sich ausschließlich der telematischen Abläufe auch dort bedienen, wo sie nicht vorgeschrieben sind","Ergebnisse der Kontrollen der übergeordneten Strukturen und eventueller Einsprüche","Amt","bereits abgelaufen","Ja","Ja","wirksam"]
["31.12. Landestierärztlicher Dienst","- I) Kontrollen, Überprüfungen, Inspektionen und Sanktionen",null,"Erlassung von Bußgeldbescheiden, welche Geld- u. nicht Geldbußen im tierärztlichen Bereich verhängen  ",null,"Externe: Empfänger von Bußgeldbescheiden","öffentliche Gesundheit, Schutz  des Tierbestandes, Schutz des Marktes ",null,"Protokolle der Feststellungsorgane","Bußgeldbescheid und Einnahme der Geldbuße","LG 3/1983\nLG 9/1977","- Amtsdirektor",null,150,"Missbrauch beim Erlass von Maßnahmen, um gewisse Subjekte zu begünstigen ","Druck durch die Übertreter oder Dritte, um eine bevorzugte Behandlung zu erfahren",null,"Das Verfahren ist teilweise von Gesetzen und/oder Verwaltungsakten geregelt (3) ","Ja, das Ergebnis des Entscheidungsprozesses ist an Subjekte außerhalb der Landesverwaltung gerichtet (5)","Nein, der Entscheidungsprozess betrifft ausschließlich die Landesverwaltung  (1)","Der Entscheidungsprozess hat ausschließlich interne Bedeutung  (1)","Nein  (1)","Von mehreren Personen, darunter auch jene Person, die für vorhergehende Phasen zuständig war (3)","Ja (1)","Nein (1)",16,2,"Von 20% bis ungefähr 60%    (3)","Nein (1)","Ja, in lokalen Zeitungen oder Zeitschriften   (3)","Die Position einer Führungskraft   (5) ",12,3,6,1,null,"nur  die Komunikation in telematischer Form begünstigen, um dadurch Transparenz zu gewährleisten und mögliche Einmischung zu vermeiden/besonderen Wert auf die Begründung der Maßnahmen legen","Ergebnisse der Kontrollen der übergeordneten Strukturen und eventueller Einsprüche","Amt","bereits abgelaufen","Ja","Ja","wirksam"]
["31.12. Landestierärztlicher Dienst","- C) Ermächtigungen oder Konzessionen",null,"Anerkennung der Lebensmittelhersteller/\nAnerkennung der Futtermittelhersteller/Anerkennung der Nebenprodukterhersteller ",null,"Externe: Unternehmen","öffentliche Gesundheit, Lebensmittelsicherheit","Berechtigung Produktionstätigkeit auszuüben","Antrag","Erteilung der EU-Zulassung","Verordnung (EG) 852/2004\nVerordnung (EG) 853/2004\nVerordnung (EG) 183/2005\nVerordnung (EG) 1069/2009\nG. 281/1963\nLG 3/1983\n","- Amtsdirektor",null,33,"Erlassen der Zulassungsnummer trotz fehlender Voraussetzungen oder fehlerhafte Beurteilung des Ermittlungsverfahrens","Druck durch das Unternehmen/falsch durchgeführtes Ermittlungsverfahren",null,"Keine, es ist vollständig geregelt (1)","Ja, das Ergebnis des Entscheidungsprozesses ist an Subjekte außerhalb der Landesverwaltung gerichtet (5)","Ja, der Entscheidungsprozess sieht die Beteiligung von mehr als 3 Verwaltungen vor  (3)","Der Entscheidungsprozess bedingt zwar die Gewährung von Vergünstigungen bzw. Vorteilen an externe Subjekte, aber diese Vorteile haben keine besondere wirtschaftliche Relevanz (z.B. Gewährung von Studienbeihilfen an Studenten)  (3)","Nein  (1)","Ja, von einer anderen Person  (1)","Ja (1)","Nein (1)",16,2,"Bis ungefähr 20%    (1)","Nein (1)","Wir haben diesbezüglich keine Kenntnis    (1)","Die Position eines einfachen Mitarbeiters   (1)",4,1,2,1,null,"präzise und ausführliche Anleitung für die Verantwortlichen des Ermittlungsverfahrens erarbeiten","Überprüfung der Anzahl und Art möglicher zukünftiger Rechtsstreitigkeiten nach Ausstellung der Zulassung","Amt","bereits abgelaufen","Nein","Nein","neutral"]
["31.12. Landestierärztlicher Dienst","- C) Ermächtigungen oder Konzessionen",null,"Anerkennung der Sammelstelle",null,"Externe: Unternehmen","öffentliche Gesundheit ","Berechtigung Produktionstätigkeit auszuüben","Antrag","Erteilung der Genehmigung","LeglD. 196/1999 Art. 9\nDPR 556/1992","- Amtsdirektor",null,0,"Erlassen der Zulassungsnummer trotz unvollständigem oder nicht zufriedenstellendem Ermittlungsverfahren","Druck durch das Unternehmen/falsch durchgeführtes Ermittlungsverfahren",null,"Keine, es ist vollständig geregelt (1)","Ja, das Ergebnis des Entscheidungsprozesses ist an Subjekte außerhalb der Landesverwaltung gerichtet (5)","Ja, der Entscheidungsprozess sieht die Beteiligung von mehr als 3 Verwaltungen vor  (3)","Der Entscheidungsprozess bedingt zwar die Gewährung von Vergünstigungen bzw. Vorteilen an externe Subjekte, aber diese Vorteile haben keine besondere wirtschaftliche Relevanz (z.B. Gewährung von Studienbeihilfen an Studenten)  (3)","Nein  (1)","Ja, von einer anderen Person  (1)","Ja (1)","Nein (1)",16,2,"Bis ungefähr 20%    (1)","Nein (1)","Wir haben diesbezüglich keine Kenntnis    (1)","Die Position eines einfachen Mitarbeiters   (1)",4,1,2,2,null,"präzise und ausführliche Anleitung für die Verantwortlichen des Ermittlungsverfahrens erarbeiten","Überprüfung der Anzahl und Art möglicher zukünftiger Rechtsstreitigkeiten nach Ausstellung der Genehmigung","Amt","bereits abgelaufen","Nein","Nein","neutral"]
["31.12. Landestierärztlicher Dienst","- J) Aufträge und Ernennungen",null,"Vorschlag für die Ernennung der Tierschutzpolizisten und Prüfung der Voraussetzungen",null,"Externe: Private Antragsteller","Schutz des Tierwohls und flächendeckende Anwesenheit",null,"Antrag","Ernennung der Tierschutzpolizisten","LG 9/2000\nDLH 19/2013","- Amtsdirektor",null,0,"mangelnde Überprüfung der Anforderungen","Druck durch die Betroffenen oder durch Dritte",null,"Keine, es ist vollständig geregelt (1)","Ja, das Ergebnis des Entscheidungsprozesses ist an Subjekte außerhalb der Landesverwaltung gerichtet (5)","Nein, der Entscheidungsprozess betrifft ausschließlich die Landesverwaltung  (1)","Der Entscheidungsprozess hat ausschließlich interne Bedeutung  (1)","Nein  (1)","Ja, von einer anderen Person  (1)","Ja (1)","Nein (1)",12,1.5,"Bis ungefähr 20%    (1)","Nein (1)","Wir haben diesbezüglich keine Kenntnis    (1)","Die Position eines einfachen Mitarbeiters   (1)",4,1,1.5,1,null,"die Angemessenheit der Bestimmungen im Bereich überprüfen","Bewertung eventueller Beanstandungen oder Meldungen durch die Tierschutzpolizisten","Amt","3 Jahre"]
["31.12. Landestierärztlicher Dienst","- C) Ermächtigungen oder Konzessionen",null,"Genehmigung für den Vertrieb von  Tierarzneimitteln",null,"Externe : Unternehmen","öffentliche Gesundheit und Erfüllung gesetzlicher Verpflichtungen","Berechtigung  die Tätigkeit auszuüben","Antrag","Erteilung der Genehmigung","LeglD. 193/2006","- Amtsdirektor",null,0,"Erlassen der Zulassungsnummer trotz unvollständigem oder nicht zufriedenstellendem Ermittlungsverfahren","Druck durch das Unternehmen/falsch durchgeführtes Ermittlungsverfahren",null,"Keine, es ist vollständig geregelt (1)","Ja, das Ergebnis des Entscheidungsprozesses ist an Subjekte außerhalb der Landesverwaltung gerichtet (5)","Ja, der Entscheidungsprozess sieht die Beteiligung von mehr als 3 Verwaltungen vor  (3)","Der Entscheidungsprozess bedingt zwar die Gewährung von Vergünstigungen bzw. Vorteilen an externe Subjekte, aber diese Vorteile haben keine besondere wirtschaftliche Relevanz (z.B. Gewährung von Studienbeihilfen an Studenten)  (3)","Nein  (1)","Ja, von einer anderen Person  (1)","Ja (1)","Nein (1)",16,2,"Bis ungefähr 20%    (1)","Nein (1)","Wir haben diesbezüglich keine Kenntnis    (1)","Die Position eines einfachen Mitarbeiters   (1)",4,1,2,3,null,"präzise und ausführliche Anleitung für die Verantwortlichen des Ermittlungsverfahrens erarbeiten","Überprüfung der Anzahl und Art möglicher zukünftiger Rechtsstreitigkeiten nach Ausstellung der Genehmigung","Amt","bereits abgelaufen","Nein","Nein","neutral"]
[null,null,null,null,null,null,null,null,null,null,null,null,null,null,null,null,null,null,null,null,null,null,null,null,null,null,0,null,null,null,null,null,0,0]
[null,null,null,null,null,null,null,null,null,null,null,null,null,null,null,null,null,null,null,null,null,null,null,null,null,null,0,null,null,null,null,null,0,0]
[null,null,null,null,null,null,null,null,null,null,null,null,null,null,null,null,null,null,null,null,null,null,null,null,null,null,0,null,null,null,null,null,0,0]
[null,null,null,null,null,null,null,null,null,null,null,null,null,null,null,null,null,null,null,null,null,null,null,null,null,null,0,null,null,null,null,null,0,0]
[null,null,null,null,null,null,null,null,null,null,null,null,null,null,null,null,null,null,null,null,null,null,null,null,null,null,0,null,null,null,null,null,0,0]
[null,null,null,null,null,null,null,null,null,null,null,null,null,null,null,null,null,null,null,null,null,null,null,null,null,null,0,null,null,null,null,null,0,0]
[null,null,null,null,null,null,null,null,null,null,null,null,null,null,null,null,null,null,null,null,null,null,null,null,null,null,0,null,null,null,null,null,0,0]
[null,null,null,null,null,null,null,null,null,null,null,null,null,null,null,null,null,null,null,null,null,null,null,null,null,null,0,null,null,null,null,null,{"$f":"ROUND(+AF71/4,1)","v":0},0]
[null,null,null,null,null,null,null,null,null,null,null,null,null,null,null,null,null,null,null,null,null,null,null,null,null,null,{"$f":"ROUND(+Z72/8,1)","v":0},null,null,null,null,null,0,0]
[null,null,null,null,null,null,null,null,null,null,null,null,null,null,null,null,null,null,null,null,null,null,null,null,null,null,0,null,null,null,null,null,0,0]
[null,null,null,null,null,null,null,null,null,null,null,null,null,null,null,null,null,null,null,null,null,null,null,null,null,null,0,null,null,null,null,null,0,0]
[null,null,null,null,null,null,null,null,null,null,null,null,null,null,null,null,null,null,null,null,null,null,null,null,null,null,0,null,null,null,null,null,0,0]
[null,null,null,null,null,null,null,null,null,null,null,null,null,null,null,null,null,null,null,null,null,null,null,null,null,null,0,null,null,null,null,null,0,0]
[null,null,null,null,null,null,null,null,null,null,null,null,null,null,null,null,null,null,null,null,null,null,null,null,null,null,0,null,null,null,null,null,0,0]
[null,null,null,null,null,null,null,null,null,null,null,null,null,null,null,null,null,null,null,null,null,null,null,null,null,null,0,null,null,null,null,null,0,{"$f":"+AA78*AG78","v":0}]
[null,null,null,null,null,null,null,null,null,null,null,null,null,null,null,null,null,null,null,null,null,null,null,null,null,null,0,null,null,null,null,null,0,0]
[null,null,null,null,null,null,null,null,null,null,null,null,null,null,null,null,null,null,null,null,null,null,null,null,null,null,0,null,null,null,null,null,0,0]
[null,null,null,null,null,null,null,null,null,null,null,null,null,null,null,null,null,null,null,null,null,null,null,null,null,null,0,null,null,null,null,null,0,0]
[null,null,null,null,null,null,null,null,null,null,null,null,null,null,null,null,null,null,null,null,null,null,null,null,null,null,0,null,null,null,null,null,0,0]
[null,null,null,null,null,null,null,null,null,null,null,null,null,null,null,null,null,null,null,null,null,null,null,null,null,null,0,null,null,null,null,null,0,0]
[null,null,null,null,null,null,null,null,null,null,null,null,null,null,null,null,null,null,null,null,null,null,null,null,null,null,0,null,null,null,null,null,0,0]
[null,null,null,null,null,null,null,null,null,null,null,null,null,null,null,null,null,null,null,null,null,null,null,null,null,null,0,null,null,null,null,null,0,0]
[null,null,null,null,null,null,null,null,null,null,null,null,null,null,null,null,null,null,null,null,null,null,null,null,null,null,0,null,null,null,null,null,0,0]
[null,null,null,null,null,null,null,null,null,null,null,null,null,null,null,null,null,null,null,null,null,null,null,null,null,null,0,null,null,null,null,null,0,0]
[null,null,null,null,null,null,null,null,null,null,null,null,null,null,null,null,null,null,null,null,null,null,null,null,null,null,0,null,null,null,null,null,0,0]
[null,null,null,null,null,null,null,null,null,null,null,null,null,null,null,null,null,null,null,null,null,null,null,null,null,null,0,null,null,null,null,null,0,0]
[null,null,null,null,null,null,null,null,null,null,null,null,null,null,null,null,null,null,null,null,null,null,null,null,null,null,0,null,null,null,null,null,0,0]
[null,null,null,null,null,null,null,null,null,null,null,null,null,null,null,null,null,null,null,null,null,null,null,null,null,null,0,null,null,null,null,null,0,0]
[null,null,null,null,null,null,null,null,null,null,null,null,null,null,null,null,null,null,null,null,null,null,null,null,null,null,0,null,null,null,null,null,0,0]
[null,null,null,null,null,null,null,null,null,null,null,null,null,null,null,null,null,null,null,null,null,null,null,null,null,null,0,null,null,null,null,null,0,0]
[null,null,null,null,null,null,null,null,null,null,null,null,null,null,null,null,null,null,null,null,null,null,null,null,null,null,0,null,null,null,null,null,0,0]
[null,null,null,null,null,null,null,null,null,null,null,null,null,null,null,null,null,null,null,null,null,null,null,null,null,null,0,null,null,null,null,null,0,0]
[null,null,null,null,null,null,null,null,null,null,null,null,null,null,null,null,null,null,null,null,null,null,null,null,null,null,0,null,null,null,null,null,0,0]
[null,null,null,null,null,null,null,null,null,null,null,null,null,null,null,null,null,null,null,null,null,null,null,null,null,null,0,null,null,null,null,null,0,0]
[null,null,null,null,null,null,null,null,null,null,null,null,null,null,null,null,null,null,null,null,null,null,null,null,null,null,0,null,null,null,null,null,0,0]
[null,null,null,null,null,null,null,null,null,null,null,null,null,null,null,null,null,null,null,null,null,null,null,null,null,null,0,null,null,null,null,null,0,0]
[null,null,null,null,null,null,null,null,null,null,null,null,null,null,null,null,null,null,null,null,null,null,null,null,null,null,0,null,null,null,null,null,0,0]

{"sheet":"Verzeichnisse","index":1,"n_rows":115,"n_cols":1,"rows_kept":115,"cut":false,"hidden":false,"merged":[]}
["Ermessensfreiheit"]
["Spalte1"]
["Keine, es ist vollständig geregelt (1)"]
["Das Verfahren ist teilweise von Gesetzen und/oder Verwaltungsakten geregelt (3) "]
["Das Verfahren sieht eine völlige Ermessensfreiheit vor (5)"]
[]
["Verwaltungsexterne Relevanz"]
["Spalte1"]
["Nein, das Ergebnis des Entscheidungsprozesses richtet sich ausschließlich an ein internes Amt (2)"]
["Ja, das Ergebnis des Entscheidungsprozesses ist an Subjekte außerhalb der Landesverwaltung gerichtet (5)"]
[]
["Komplexität des Entscheidungsprozesses"]
["Spalte1"]
["Nein, der Entscheidungsprozess betrifft ausschließlich die Landesverwaltung  (1)"]
["Ja, der Entscheidungsprozess sieht die Beteiligung von mehr als 3 Verwaltungen vor  (3)"]
["Ja, der Entscheidungsprozess sieht die Beteiligung von mehr als 5 Verwaltungen vor (5)"]
[]
["Wirtschaftliche Bedeutung"]
["Spalte1"]
["Der Entscheidungsprozess hat ausschließlich interne Bedeutung  (1)"]
["Der Entscheidungsprozess bedingt zwar die Gewährung von Vergünstigungen bzw. Vorteilen an externe Subjekte, aber diese Vorteile haben keine besondere wirtschaftliche Relevanz (z.B. Gewährung von Studienbeihilfen an Studenten)  (3)"]
["Der Entscheidungsprozess bedingt die Gewährung von erheblichen Vergünstigungen bzw. Vorteilen an externe Subjekte (z.B. Erteilung von öffentlichen Aufträgen)  (5)"]
[]
["Teilbarkeit des Entscheidungsprozesses"]
["Spalte1"]
["Nein  (1)"]
["Ja (5)"]
[]
["Kontrollen "]
["Spalte1"]
["Ja, von einer anderen Person  (1)"]
["Von mehreren Personen, darunter auch jene Person, die für vorhergehende Phasen zuständig war (3)"]
["Nein, die Kontrolle wird von derselben Person ausgeübt (4) "]
["Nein, es ist keine Kontrolle vorgesehen  (5) "]
[]
["Rückverfolgbarkeit und Transparenz"]
["Spalte1"]
["Ja (1)"]
["Zum Teil (3)"]
["Nein (5)"]
[]
["Beteiligung von externen Subjekten"]
["Spalte1"]
["Nein (1)"]
["Ja (5)"]
[]
["Organisatorische Auswirkungen"]
["Spalte1"]
["Bis ungefähr 20%    (1)"]
["Von 20% bis ungefähr 60%    (3)"]
["Von 60% bis ungefähr 100% (5)"]
[]
["Wirtschaftliche Auswirkungen"]
["Spalte1"]
["Nein (1)"]
["Ja (5)"]
[]
["Rufschädigende Auswirkungen"]
["Spalte1"]
["Nein    (0)"]
["Wir haben diesbezüglich keine Kenntnis    (1)"]
["Ja, in lokalen Zeitungen oder Zeitschriften   (3)"]
["Ja, in lokalen und nationalen Zeitungen oder Zeitschriften    (5)"]
[]
["Auswirkungen auf Image und Organisation"]
["Spalte1"]
["Die Position eines einfachen Mitarbeiters   (1)"]
["Die Position einer Führungskraft   (5) "]
[]
["Risikobereiche gemäß Art. 1, Abs. 16, G.190/2012:"]
["Spalte1"]
["- A) Wettbewerbe und Auswahlverfahren im Personalbereich"]
["- B) Öffentliche Verträge"]
["- C) Ermächtigungen oder Konzessionen"]
["- D) Gewährung und Auszahlung von Subventionen, Beiträgen, Zuschüssen, Prämien und wirtschaftlichen Vergünstigungen jeglicher Art "]
["- E) Landesplanung und Ortsplanung"]
["- F) Landschaftsplanung"]
["- G) Umweltverträglichkeitsprüfung und Sammelgenehmigungsverfahren"]
["- H) Verwaltung der Einnahmen, der Ausgaben und des Vermögens"]
["- I) Kontrollen, Überprüfungen, Inspektionen und Sanktionen"]
["- J) Aufträge und Ernennungen"]
["- K) Rechtsangelegenheiten und Streitsachen"]
["- L) Programmierung und Verwaltung der EU-Fonds"]
["- Weiteres (angeben ob weitere riskante Tätigkeiten außer der oben genannten bestehen)"]
[]
["Verantwortlicher (Art. 10 und 11, LG Nr. 17/1993)"]
["Spalte1"]
["- Abteilungsdirektor"]
["- Bereichskoordinator"]
["- Amtsdirektor"]
["- Zuständiger Bediensteter"]
[]
["TermineAttuazione"]
["Spalte1"]
["bereits abgelaufen"]
["sofort"]
["6 Monate"]
["1 Jahr"]
["3 Jahre"]
[]
["Monitoraggio"]
["Si è attuata la misura?"]
["Spalte1"]
["Ja"]
["Nein"]
[]
["Si è rispettato il termine?"]
["Spalte1"]
["Ja"]
["Nein"]
[]
["ValutazioneAttuazione"]
["wirksam"]
["neutral"]
["unwirksam"]